Cogmind - Beta 15 @@@ ROGUE MODE // 2025.08.17 @ 02:27:23 Player: puppuppit Result: Defending 0bPrime! Performance ------------- Evolutions (8) 4000 Regions Visited (33) 6600 Robots Destroyed (927) 4635 Value Destroyed (44719) 44719 Prototype IDs (124) 2480 Alien Tech Used (8) 1600 Bonus (55356) 55356 TOTAL SCORE: 119390 Bonus ------- Triggered High Security 2000 High Alert Combat Kills 24178 Follower Combat Kills 3760 Registered with UFD 300 Met Optimus in HQ 500 Met Imprinter 300 Met Zhirov 300 Met Warlord at Base 500 MAIN.C Attacked Warlord 500 Warlord Defense Kills 6070 Hacked Protovariant 500 Scanned by Researcher 500 Acquired SGEMP 2000 Met Optimus at Protoforge 1000 Completed Drillbomb Mission10000 Optimus Survived to 0b1 3000 Win 3000 Friendly Fire -3052 Cogmind --------- Core Integrity 471/1450 Matter 300/300 Energy 600/600 System Corruption 0% Temperature Cool (0) Movement Hovering (30) Location 0bPrime Parts ------- > --- POWER (2) -------- Improved Quantum Reactor Improved Quantum Reactor > --- PROPULSION (9) --- Improved Antigrav System Improved Antigrav System Improved Antigrav System Improved Antigrav System Improved Antigrav System Improved Antigrav System Combat Linear Gravjet Combat Linear Gravjet Combat Linear Gravjet > --- UTILITY (9) ------ 0bPrime Scrap Suit Concept Antigrav Storage Unit Experimental Optical Array Tactical Coordination Suite Weapon Mount Experimental Core Analyzer Experimental Armor Integrity Analyzer Advanced Recoil Stabilizer > --- WEAPON (4) ------- Compact Linear Accelerator Compact Linear Accelerator Compact Linear Accelerator Compact Linear Accelerator > --- INVENTORY (25) --- 2N-1CE's Frost Array Concept NT7 Matterbank (750) Concept NT7 Matterbank (750) Weapon Mount Concept Matter Streamer Crosscalibrator Core Cannon Concept XC Strikerail Concept XC Strikerail Concept XC Strikerail Concept XC Strikerail Overtuned Linear Accelerator Overtuned Linear Accelerator Compact Linear Accelerator Concept Rapid Grenade Launcher Sigix Broadsword SGEMP Prototype Peak State ------------ > --- POWER ------------ Vortex Chain Reactor > --- PROPULSION ------- Improved Antigrav System Improved Antigrav System Improved Antigrav System Improved Antigrav System Improved Antigrav System Improved Antigrav System Combat Linear Gravjet Combat Linear Gravjet Combat Linear Gravjet > --- UTILITY ---------- 0bPrime Scrap Suit 2N-1CE's Frost Array Concept Antigrav Storage Unit Experimental Optical Array Weapon Mount Experimental Core Analyzer Experimental Armor Integrity Analyzer Advanced Recoil Stabilizer > --- WEAPON ----------- Concept XC Strikerail Concept XC Strikerail Concept XC Strikerail Concept XC Strikerail > --- INVENTORY -------- Particle Reactor Improved Quantum Reactor Improved Antigrav System Concept NT7 Matterbank Concept NT7 Matterbank Concept NT7 Matterbank Concept NT7 Matterbank Tactical Coordination Suite Weapon Mount Long-range Tractor Beam Concept Matter Streamer Concept Matter Streamer Concept Matter Streamer Crosscalibrator High-powered Transdimensional Reconstructor High-powered Transdimensional Reconstructor Core Cannon Railgun Compact Linear Accelerator Concept Rapid Grenade Launcher Sigix Broadsword SGEMP Prototype [Rating: 244] Favorites ----------- Power Light Quantum Reactor Engine Ion Engine Power Core Fission Core Reactor Light Quantum Reactor Propulsion Combat Linear Gravjet Treads Improved Treads Hover Unit Combat Linear Gravjet Utility Large Storage Unit Device Weapon Mount Storage Large Storage Unit Processor Experimental Armor Integrity Analyzer Hackware Hacking Suite Protection Centrium Light Armor Plating Weapon Assault Cannon Energy Gun Vortex Rail Energy Cannon Advanced Plasma Cannon Ballistic Gun KE Penetrator Ballistic Cannon Assault Cannon Launcher Grenade Launcher Special Weapon Improved Remote Datajack Slashing Weapon Sigix Broadsword Piercing Weapon Kinetic Spear Build | -11 -10 -10 -9 -9 -9 -9 -6 -6 -6 -6 -6 -6 -6 -5 -5 -5 -5 -5 -5 -5 -4 -4 -4 -4 -4 -4 -4 -3 -3 -3 -2 -2 -2 ------- Run | Yrd Mat Min Mat Sto Rec Scr Fac Was Fac Low Low Zio Dee Pro Fac Was Fac Upp Upp War Pro Fac Was Fac Upp Upp Zhi Pro Res Tes Res Qua Frg Slots Evolved 16 | . . . 2 . . . 6 . . . . . . . 2 . . . . . . 2 . . . . . . 2 . 2 . . Power 1 | . . . . . . . . . . . . . . . . . . . . . . 1 . . . . . . . . . . . Propulsion 6 | . . . . . . . 4 . . . . . . . . . . . . . . . . . . . . . 1 . 1 . . Utility 7 | . . . . . . . 2 . . . . . . . 2 . . . . . . 1 . . . . . . 1 . 1 . . Weapon 2 | . . . 2 . . . . . . . . . . . . . . . . . . . . . . . . . . . . . . Parts Attached 498 | 6 10 3 26 4 1 3 56 5 23 1 6 7 5 1 44 . 10 11 4 23 2 54 14 11 . 2 3 7 36 14 9 12 85 Power 68 | 1 1 . 4 3 . . 8 1 3 . 1 . 1 . 2 . 2 1 . 3 . 14 2 2 . . . 2 5 1 1 3 7 Engine 18 | 1 1 . 3 3 . . 5 . 2 . . . . . 2 . . . . . . 1 . . . . . . . . . . . Core 8 | . . . 1 . . . 3 . . . . . . . . . 1 1 . 1 . 1 . . . . . . . . . . . Reactor 42 | . . . . . . . . 1 1 . 1 . 1 . . . 1 . . 2 . 12 2 2 . . . 2 5 1 1 3 7 Propulsion 105 | 2 2 1 4 1 1 . 15 2 5 . . 1 . . 14 . . . . 4 . 8 1 . . . 1 3 7 5 1 2 25 Treads 11 | 2 2 1 4 1 1 . . . . . . . . . . . . . . . . . . . . . . . . . . . . Leg . | . . . . . . . . . . . . . . . . . . . . . . . . . . . . . . . . . . Wheel . | . . . . . . . . . . . . . . . . . . . . . . . . . . . . . . . . . . Hover 94 | . . . . . . . 15 2 5 . . 1 . . 14 . . . . 4 . 8 1 . . . 1 3 7 5 1 2 25 Flight . | . . . . . . . . . . . . . . . . . . . . . . . . . . . . . . . . . . Utility 159 | 1 4 2 5 . . 1 16 1 8 . 4 4 3 1 13 . 3 5 2 10 . 16 3 8 . 1 1 1 13 4 2 3 24 Device 72 | . 1 . . . . . 9 1 3 . 2 1 1 . 3 . 2 3 . 6 . 8 3 5 . 1 . 1 8 2 . . 12 Storage 16 | 1 2 . 1 . . 1 1 . . . 1 . . . 2 . . . . . . 2 . . . . 1 . . . . 1 3 Processor 31 | . . . . . . . 5 . 2 . 1 3 . . 3 . . 1 1 2 . 1 . 3 . . . . . 1 . 2 6 Hackware 27 | . 1 . 2 . . . 1 . 3 . . . . . 5 . 1 . . . . 5 . . . . . . 5 1 2 . 1 Protection 13 | . . 2 2 . . . . . . . . . 2 1 . . . 1 1 2 . . . . . . . . . . . . 2 Artifact . | . . . . . . . . . . . . . . . . . . . . . . . . . . . . . . . . . . Weapon 166 | 2 3 . 13 . . 2 17 1 7 1 1 2 1 . 15 . 5 5 2 6 2 16 8 1 . 1 1 1 11 4 5 4 29 Energy Gun 6 | 1 . . . . . . 1 . . . . 1 . . . . . . . 2 . . . . . . . . . . 1 . . Energy Cannon 9 | . . . . . . . 1 . . . . . . . 3 . . 1 . 2 . . . . . . . . . . 1 . 1 Ballistic Gun 63 | 1 1 . 7 . . . 12 1 1 . . . . . 6 . 5 2 2 . 1 13 . . . . . . . . . . 11 Ballistic Cannon 67 | . . . 6 . . 2 . . 4 1 1 1 . . 3 . . 1 . 1 . 2 6 1 . 1 1 1 10 4 2 3 16 Launcher 16 | . 2 . . . . . 3 . 2 . . . 1 . 1 . . . . 1 1 1 1 . . . . . 1 . 1 . 1 Special Weapon 2 | . . . . . . . . . . . . . . . 1 . . . . . . . 1 . . . . . . . . . . Impact Weapon . | . . . . . . . . . . . . . . . . . . . . . . . . . . . . . . . . . . Slashing Weapon 2 | . . . . . . . . . . . . . . . . . . 1 . . . . . . . . . . . . . 1 . Piercing Weapon 1 | . . . . . . . . . . . . . . . 1 . . . . . . . . . . . . . . . . . . Special Melee Weapon . | . . . . . . . . . . . . . . . . . . . . . . . . . . . . . . . . . . Unidentified Prototypes 59 | . . . 1 1 . . 2 1 5 . 1 5 2 . 2 . 1 . . 12 1 2 . 1 . . 3 1 . 3 1 3 11 Parts Lost 122 | . . 2 5 . . . 13 . 3 . . 1 . 1 31 . 7 2 . 2 . 19 . 1 . . . . 10 1 7 5 12 Power 13 | . . . 1 . . . 3 . . . . . . . 1 . . . . . . 5 . . . . . . 1 1 . 1 . Propulsion 42 | . . 1 1 . . . 4 . 1 . . . . . 12 . 3 . . . . 4 . . . . . . 3 . 2 3 8 Utility 20 | . . 1 2 . . . . . 1 . . 1 . 1 6 . . . . 1 . 1 . 1 . . . . 4 . . 1 . Weapon 47 | . . . 1 . . . 6 . 1 . . . . . 12 . 4 2 . 1 . 9 . . . . . . 2 . 5 . 4 Highest Loss Streak 9 | . . 1 3 . . . 5 . 1 . . 1 . 1 9 . 5 2 . 1 . 7 . 1 . . . . 3 1 6 2 2 To Critical Strikes 5 | . . . . . . . 1 . . . . . . . . . 1 . . . . 1 . . . . . . 1 . 1 . . Average Backups 13 | 1 10 14 14 14 15 14 13 14 13 14 13 13 14 14 13 10 12 11 13 11 12 11 13 13 14 14 13 14 14 13 12 10 11 Power 1 | . . 1 . . 1 1 . 1 1 1 1 1 1 1 1 2 1 1 1 1 2 . . 1 1 1 1 1 1 . 1 1 . Propulsion 2 | . 1 3 3 4 8 6 2 3 3 4 3 3 3 3 3 3 2 . . 2 4 3 2 3 3 3 3 3 2 3 1 . . Utility 5 | 1 4 6 5 4 4 4 6 8 7 6 6 6 7 7 4 2 5 7 9 4 4 5 6 4 6 5 4 4 5 6 5 4 5 Weapon 3 | . 3 3 4 5 2 2 4 2 2 2 3 3 2 2 3 1 . 1 1 2 2 2 2 4 4 4 4 5 4 2 4 2 2 Tool/Special . | . . . . . . . . . . . . . . . . . . . . . . . . . . . . . . . . . . Unused Backups 103 | 1 1 . 13 2 1 3 19 1 4 1 2 2 . . 4 . 2 . 5 5 . 11 3 . . 2 . 1 2 1 1 2 14 Power 11 | . . . 2 . . . 2 . 1 . . . . . 1 . . . 1 1 . . . . . . . . 1 . . . 2 Propulsion 11 | . . . 4 . . 1 1 . . . . . . . . . . . . . . 2 . . . . . . 1 . . . 2 Utility 57 | 1 1 . 6 . . 1 11 1 3 1 2 1 . . 1 . 1 . 3 3 . 5 3 . . 2 . 1 . 1 1 . 8 Weapon 22 | . . . 1 2 1 1 5 . . . . 1 . . 2 . . . 1 1 . 3 . . . . . . . . . 2 2 Tool/Special 2 | . . . . . . . . . . . . . . . . . 1 . . . . 1 . . . . . . . . . . . Average Slot Usage (%) 96 | . 99 100 98 99 100 94 97 100 99 100 99 99 99 99 95 83 96 94 97 95 99 98 99 99 100 100 82 100 95 90 90 90 89 Engine 3 | . 14 14 8 11 11 6 2 . . . . . . . . 5 . . . . . . . . . . . . . 1 . . . Reactor 4 | . . . . . . . . . 4 6 6 6 6 6 4 . 4 5 . 3 5 8 10 10 10 10 10 10 9 6 8 7 5 Treads 6 | . 28 28 21 21 22 22 . . . . . . . . . . . . . . . . . . . . . . . . . . . Hover 25 | . . . . . . . 39 40 40 40 42 43 43 43 35 38 37 38 38 38 38 34 35 35 35 35 35 35 31 27 32 32 35 Device 8 | . 10 . . . . . 4 13 13 13 12 11 8 10 7 11 12 13 11 11 16 12 14 15 15 15 17 20 12 8 8 8 14 Storage 6 | . 14 14 11 11 11 11 6 6 6 6 6 6 6 6 5 5 5 5 5 5 5 5 5 5 5 5 5 5 4 4 4 4 4 Processor 5 | . . . . . . . 2 6 2 6 6 6 6 6 10 5 5 6 11 10 5 6 5 9 15 15 12 10 8 5 8 8 11 Hackware 6 | . 3 8 4 11 11 11 11 . 3 . . . . . 8 5 8 . . . . 9 10 4 . . . . 9 16 15 13 2 Protection 1 | . . 5 5 . . . . . . . . . 3 1 . . . 2 2 1 5 2 . . . . . . . . . . . Ballistic Gun 9 | . 24 27 28 . . . 21 26 6 . . . . . 4 . 14 12 16 16 15 17 2 . . . . . . . . . 2 Ballistic Cannon 14 | . . . 14 42 44 44 2 . 19 25 25 24 24 24 13 10 5 3 4 . . 1 16 20 20 20 2 20 17 17 10 10 9 Peak Build Rating 244 | 6 14 14 26 26 23 27 74 78 81 81 87 95 93 93 108 87 105 106 111 136 136 145 148 154 154 154 155 156 170 179 201 209 244 Average Rating 98 | 5 11 13 19 23 23 24 63 74 77 80 84 88 90 90 98 82 98 101 107 115 129 135 139 145 153 153 130 153 165 166 188 198 208 On Entrance 96 | . 6 14 12 24 23 23 27 71 76 80 81 87 89 90 90 79 82 89 105 108 136 129 130 141 154 153 153 155 153 168 176 185 208 Naked Turns . | . . . . . . . . . . . . . . . . . . . . . . . . . . . . . . . . . . Heaviest Build 117 | 11 30 32 45 45 44 44 59 59 57 58 62 67 66 62 63 52 63 81 81 78 78 88 102 92 92 87 91 101 108 106 103 104 117 Greatest Support 129 | 40 46 46 46 46 46 46 60 61 70 70 71 82 70 70 93 54 93 93 93 95 95 105 98 106 94 94 94 105 108 117 129 118 124 Greatest Overweight (x) 1 | . . . 1 . . . 1 . 1 . . . . . 1 . 1 . . . . . 1 . . . . 1 1 . . 1 1 Average Overweight (x) . | . . . . . . . . . . . . . . . . . . . . . . . . . . . . . . . . . . Largest Inventory Capacity 25 | 8 15 15 15 15 15 15 15 15 15 15 15 15 15 15 15 15 15 15 15 15 15 15 15 15 15 15 15 15 15 15 15 15 25 Average Capacity 14 | 7 12 15 15 15 15 15 15 15 15 15 15 15 15 15 15 15 15 15 15 15 15 15 15 15 15 15 15 15 15 15 15 15 16 Most Carried 25 | 4 15 15 15 15 15 15 15 15 15 15 15 15 15 15 15 11 15 15 15 15 15 15 15 15 15 15 15 15 15 15 15 15 25 Average Carried 14 | 1 10 14 14 14 15 14 14 14 14 14 14 14 14 14 14 10 14 12 14 14 14 14 14 14 15 14 14 14 14 14 14 14 15 Final Capacity 25 | 8 15 15 15 15 15 15 15 15 15 15 15 15 15 15 15 15 15 15 15 15 15 15 15 15 15 15 15 15 15 15 15 15 25 Final Carried 20 | 3 15 13 15 15 15 15 15 15 15 15 15 15 15 15 12 11 12 15 15 15 15 14 15 15 15 15 15 15 15 15 14 15 20 Class Distribution -------------------- 28% | Gunner 26% | Scavenger-Gunner 12% | Hacker-Gunner 8% | Mutant 5% | Scavenger-Sprinter 4% | Hacker-Sprinter 3% | Tank Dominant Class ---------------- Mutant | -10/Materials Mutant | -10/Mines Scavenger-Tank | -9/Materials Gunner | -9/Storage Gunner | -9/Recycling Gunner | -9/Scraptown Hacker-Gunner | -6/Factory Gunner | -6/Waste Gunner | -6/Factory Skirmisher | -6/Lower Caves Skirmisher | -6/Lower Caves Gunner | -6/Zion Gunner | -6/Deep Caves Gunner | -5/Proximity Caves Gunner | -5/Factory Mutant | -5/Waste Hacker-Gunner | -5/Factory Gunner | -5/Upper Caves Gunner | -5/Upper Caves Commander-Gunner | -5/Warlord Scavenger-Gunner | -4/Proximity Caves Scavenger-Gunner | -4/Factory Scavenger-Gunner | -4/Waste Scavenger-Gunner | -4/Factory Scavenger-Gunner | -4/Upper Caves Scavenger-Gunner | -4/Upper Caves Scavenger-Mutant | -4/Zhirov Scavenger-Gunner | -3/Proximity Caves Hacker-Gunner | -3/Research Hacker-Gunner | -3/Testing Hacker-Sprinter | -2/Research Hacker-Sprinter | -2/Quarantine Scavenger-Gunner | -2/Protoforge Resources | -11 -10 -10 -9 -9 -9 -9 -6 -6 -6 -6 -6 -6 -6 -5 -5 -5 -5 -5 -5 -5 -4 -4 -4 -4 -4 -4 -4 -3 -3 -3 -2 -2 -2 ----------- Run | Yrd Mat Min Mat Sto Rec Scr Fac Was Fac Low Low Zio Dee Pro Fac Was Fac Upp Upp War Pro Fac Was Fac Upp Upp Zhi Pro Res Tes Res Qua Frg Matter Collected 48415 | 375 485 182 1776 1418 444 40 4262 187 1839 145 522 243 277 554 2822 . 983 563 40 1100 290 3872 1247 1211 190 165 216 799 5119 1545 867 1288 13349 Remotely 8594 | . . . . . . . 460 . 697 . 72 . . . 1273 . 129 . . . . 1027 520 98 . . . 108 1332 492 125 311 1950 Salvage Created 41234 | 179 809 309 2125 1464 827 . 4494 213 1358 67 126 28 136 364 2677 . 707 379 90 1963 582 3944 1437 918 131 81 267 629 3845 837 669 728 8851 Parts 1682 | 19 61 9 141 80 32 . 173 5 75 3 6 3 5 22 100 . 30 8 6 73 28 188 7 25 4 4 2 30 138 33 19 27 326 Haulers Intercepted 26 | . 1 . 6 6 . . 3 . 3 . . . . . 1 . . . . . . 2 . 1 . . . . 2 . . 1 . Recyclers Shooed 29 | . 3 1 1 . 2 . 6 . 2 . . . . . 4 . . . . . . 4 . . . . . . 4 2 . . . Parts Field Recycled . | . . . . . . . . . . . . . . . . . . . . . . . . . . . . . . . . . . Retrieved Matter . | . . . . . . . . . . . . . . . . . . . . . . . . . . . . . . . . . . Parts Self-Destructed 124 | . . . . . . . . . . 4 9 1 . 9 . . . 6 6 . 31 . . . 5 2 2 49 . . . . . Prevented 4 | . . . . . . . . . . . . . . 3 . . . . . . 1 . . . . . . . . . . . . Kills | -11 -10 -10 -9 -9 -9 -9 -6 -6 -6 -6 -6 -6 -6 -5 -5 -5 -5 -5 -5 -5 -4 -4 -4 -4 -4 -4 -4 -3 -3 -3 -2 -2 -2 ------- Run | Yrd Mat Min Mat Sto Rec Scr Fac Was Fac Low Low Zio Dee Pro Fac Was Fac Upp Upp War Pro Fac Was Fac Upp Upp Zhi Pro Res Tes Res Qua Frg Combat Hostiles Destroyed 692 | . 14 13 41 33 7 . 54 . 22 3 6 2 8 12 48 . 13 4 1 50 16 54 6 17 2 1 . 10 60 10 12 7 166 Melee 11 | . . . . . . . . . . . . . . . 2 . . . . . . 2 . . . . . . . . . . 7 Guns 182 | . 2 8 24 . . . 34 . 6 . . . . . 11 . 8 2 1 16 11 41 . . . . . . . . . . 18 Cannons 345 | . . . 9 22 7 . 1 . 11 2 3 2 1 3 16 . 5 2 . 12 . 5 6 17 2 1 . 10 43 10 7 7 141 AOE 151 | . 12 5 8 11 . . 19 . 5 1 3 . 7 9 17 . . . . 22 5 6 . . . . . . 17 . 4 . . Classes Destroyed 35 | 3 7 2 1 2 . . 3 . . 1 . 2 1 1 1 . . . . 4 1 . 1 . . . . . . 1 . . 4 Worker 44 | 2 3 . 3 5 . . 8 . . . . . . . . . . . . . . 9 . 1 . . . . 11 . . 2 . Builder 23 | . 2 . 3 1 2 . 5 . 2 . . . . . . . 1 . . . . 4 . . . . . . 2 . . 1 . Tunneler 12 | 5 . . 2 . . . 1 . 2 . . . . . 2 . . . . . . . . . . . . . . . . . . Hauler 26 | . 1 . 6 6 . . 3 . 3 . . . . . 1 . . . . . . 2 . 1 . . . . 2 . . 1 . Recycler 68 | 1 4 2 3 5 7 . 13 . 2 . . . . . 9 . . . . . . 5 . . . . . . 10 4 1 2 . Carrier 1 | . . . . . . . . . . . . . . . . . . . . . . . . . . . . . . . . . 1 Minesweeper 2 | . . . . . . . . . . . . . . . . . . . . . 1 . . . . . . 1 . . . . . Mechanic 6 | . 1 . . . . . 1 . . . . . . . . . . . . . . . . . . . . . . . . . 4 Operator 15 | . 1 . 3 1 . . . . 1 . . . . . 1 . . . . . . 3 . . . . . . 2 . 1 . 2 Drone 15 | . . . . . . . . . . . . . . 2 1 . . . . . . 1 . . . . . 2 . . . . 9 Watcher 40 | . 3 . 5 2 . . 3 . 2 . . . . . 3 . 2 . . . . 4 . . . . . . 5 2 2 2 5 Swarmer 124 | . 6 3 11 5 . . 7 . 8 . 3 . . 8 9 . 4 . . 4 11 11 . . . . . . 12 4 5 1 12 Saboteur 10 | . . . . . . . 1 . . . . . . . 1 . . . . 4 . 2 . 1 . . . . 1 . . . . Grunt 218 | . 8 . 20 16 . . 27 . 8 . 2 . . . 25 . 6 1 . 24 4 20 . 10 2 . . 3 17 1 2 1 21 Brawler 10 | . . . . . . . . . . . . . . . 1 . . 2 . . . . . . . . . 2 1 . . . 4 Duelist 5 | . . . . 2 . . . . . . . . . . . . . . . . . 1 . . . . . . . . . . 2 Protector 18 | . . . . 1 . . . . 1 . . . . . . . . . . 2 . . . 1 . . . . . . . . 13 Researcher 4 | . . . . . . . . . . . . . . . . . . . . . . . . . . . . . . 2 . 2 . Sentry 65 | . . . 10 9 6 . 7 . 2 . 1 . . . 3 . 2 1 1 . 1 4 . 4 . . . . 7 . 2 . 5 Demolisher 5 | . . 1 . . 1 . 1 . . . . . . . . . . . . . . . . . . . . . . . . . 2 Specialist 8 | . . . . . . . . . . . . . . . . . . . . 4 . . . . . . . . . . . . 4 Hunter 42 | . . . . . . . 5 . 2 2 . . . 2 3 . . . . 3 . 5 . . . . . . 8 . . 2 10 Programmer 71 | . . . . . . . 6 . 2 . . . . . 5 . 1 . . 1 . 9 . 1 . . . 2 13 5 2 3 21 Behemoth 6 | . . . . . . . . . . . . . . . . . . . . 2 . 1 . . . . . 1 1 . 1 . . Compactor 6 | . . . . . . . . . . . . . . . . . . . . . . . 6 . . . . . . . . . . Enhanced Demolisher 1 | . . . . . . . . . . . . . . . . . . . . 1 . . . . . . . . . . . . . Hotshot 8 | . . . . . . . . . . . . . . . . . . . . . . . . . . . . . . . . . 8 Immortal 1 | . . . . . . . . . . . . . . . . . . . . . . . . . . . . . . . . . 1 Overlord 1 | . . . . . . . . . . . . . . . . . . . . . . . . . . . . . . . . . 1 Striker 26 | . . . . . . . . . . . . . . . . . . . . 4 . . . . . . . . . . . . 22 Executioner 32 | . . . . . . . . . . . . . . . . . . . . 2 . . . . . . . . . . . . 30 Scrapoid 2 | . . . . . . . . . . . . . . . . . . . . . . . . . . . . . . . . . 2 Scraphulk 1 | . . . . . . . . . . . . . . . . . . . . . . . . . . . . . . . . . 1 Zionite 1 | . . . . . . . . . . . . 1 . . . . . . . . . . . . . . . . . . . . . Z-Technician 5 | . . . . . . . . . . . . . 5 . . . . . . . . . . . . . . . . . . . . Z-Light 5 | . . . . . . . . . . . . . 5 . . . . . . . . . . . . . . . . . . . . Thief 1 | . . . . . . . . . . 1 . . . . . . . . . . . . . . . . . . . . . . . Assembled 12 | . . 9 . . . . . . . . . . 3 . . . . . . . . . . . . . . . . . . . . Surgeon 1 | . . . . . . . . . . . . . . . . . . . . . . . . 1 . . . . . . . . . Wasp 1 | . . . . . . . . . 1 . . . . . . . . . . . . . . . . . . . . . . . . Mutant 3 | . . . . . . . . . . . . 1 . . . . . . . 1 . . . . . 1 . . . . . . . Best Kill Streak 14 | 5 8 4 7 7 6 . 14 . 7 3 3 3 7 6 8 . 7 2 1 13 5 9 5 6 2 1 . 4 8 5 4 7 10 Combat Bots Only 13 | . 5 4 6 5 4 . 10 . 6 3 3 2 5 6 8 . 5 2 1 13 5 6 5 6 2 1 . 4 8 4 4 5 9 Max Kills in Single Turn 11 | 2 3 3 3 3 2 . 6 . 4 1 3 1 7 4 5 . 2 1 1 11 3 8 1 1 1 1 . 1 4 1 4 2 2 Gunslinging 1 | . . . 1 . . . . . . . . . . . . . . . . . 1 1 . . . . . . . . . . . Exploded 11 | . 3 3 3 2 . . 3 . 4 1 3 . 3 4 4 . . . . 11 3 4 . . . . . . 4 . 4 . . Melee 1 | . . . . . . . . . . . . . . . 1 . . . . . . 1 . . . . . . . . . . 1 Uniques/NPCs Destroyed 1 | . . . . . . . . . . . . 1 . . . . . . . . . . . . . . . . . . . . . Imprinter (-6/Zion) Combat | -11 -10 -10 -9 -9 -9 -9 -6 -6 -6 -6 -6 -6 -6 -5 -5 -5 -5 -5 -5 -5 -4 -4 -4 -4 -4 -4 -4 -3 -3 -3 -2 -2 -2 -------- Run | Yrd Mat Min Mat Sto Rec Scr Fac Was Fac Low Low Zio Dee Pro Fac Was Fac Upp Upp War Pro Fac Was Fac Upp Upp Zhi Pro Res Tes Res Qua Frg Hostile Shots Fired 2824 | . 21 31 84 84 13 . 289 . 107 9 11 41 10 31 377 . 117 49 . 81 34 505 . 62 8 9 . 26 295 61 143 107 219 Missed 1259 | . 7 9 25 27 3 . 129 . 51 4 5 19 4 13 131 . 55 20 . 50 20 248 . 27 6 6 . 12 167 27 72 32 90 Hits 1565 | . 14 22 59 57 10 . 160 . 56 5 6 22 6 18 246 . 62 29 . 31 14 257 . 35 2 3 . 14 128 34 71 75 129 Melee 11 | . . 5 . . . . . . . 2 . . . . 1 . . . . . . 3 . . . . . . . . . . . Projectile 1554 | . 14 17 59 57 10 . 160 . 56 3 6 22 6 18 245 . 62 29 . 31 14 254 . 35 2 3 . 14 128 34 71 75 129 AOE 15 | . . 9 . . 1 . . . . . . . . . 3 . 1 . . . . . . . . . . . . . . . 1 Critical Strikes 68 | . 1 1 3 1 . . 6 . 2 . 1 . . 1 10 . 1 . . 2 2 16 . 3 . . . 1 3 2 4 3 5 Actively Blocked 8 | . . . 2 . . . . . . . . . . 1 . . . . . . . . . . . . . . . . 1 3 1 Part Disruptions 3 | . . . . . . . 1 . . . . . . . . . . . . . . . . . . . . . 1 . . . 1 Damage Taken 30586 | . 209 697 711 790 171 . 2304 . 878 103 123 233 196 335 4492 . 973 446 . 430 212 4746 . 821 32 . . 323 2844 1024 1857 1431 4205 Core 2716 | . 16 108 91 134 . . 187 . 40 . 17 20 27 31 412 . 138 75 . 15 9 396 . 64 . . . . 216 119 137 20 444 Absorbed by Shields 728 | . . . . . . . . . 35 . . . . . 84 . . 191 . 66 103 140 . 79 . . . . . 30 . . . Redirected to Shielding 517 | . . 29 21 . . . . . . . . . 142 164 161 . . . . . . . . . . . . . . . . . . Ignored by Resistances 104 | . . . . . . . . . . . . . . . . . 104 . . . . . . . . . . . . . . . . Regen/Repaired (Parts) 5402 | . 48 . 265 275 . . 501 212 155 . . . . . 213 . 125 . . 262 . 700 399 45 . . . . 460 46 203 523 970 Core Remaining (%) 56 | 100 . 50 . . . 43 . . . . . . . 62 . . . . . . 35 . . . . . . 60 . 67 . . 32 Volleys Fired 1745 | 14 70 36 99 73 21 . 171 2 71 5 18 4 4 16 125 . 43 23 1 58 23 149 15 42 2 10 13 24 137 43 33 31 369 Largest 4 | 2 2 2 4 4 4 . 4 4 4 4 4 4 4 3 4 . 4 4 3 4 4 4 4 4 4 4 1 4 4 4 4 4 4 Hottest 398 | 60 60 40 148 148 144 . 182 111 160 160 168 172 182 124 222 . 144 133 103 160 160 228 214 209 209 213 56 213 221 213 225 232 398 Shots Fired 5185 | 28 133 69 369 222 85 . 560 8 218 16 49 16 16 24 314 . 107 69 3 192 77 541 50 146 10 20 13 68 425 111 77 66 1083 Gun 2186 | 28 124 66 293 . . . 503 8 82 . . . . . 72 . 77 46 3 150 76 504 9 . . . . . . . 5 . 140 Cannon 2900 | . . . 71 209 85 . 42 . 132 15 46 16 14 21 231 . 30 23 . 32 . 34 39 146 10 20 13 68 412 111 71 66 943 Launcher 90 | . 9 3 5 13 . . 15 . 4 1 3 . 2 3 10 . . . . 2 1 3 2 . . . . . 13 . 1 . . Special 9 | . . . . . . . . . . . . . . . 1 . . . . 8 . . . . . . . . . . . . . Kinetic 4932 | 14 113 66 364 209 85 . 543 8 214 15 46 16 14 21 266 . 107 69 3 131 59 534 48 146 10 20 13 68 412 111 63 66 1078 Thermal 57 | . . . . . . . 2 . . . . . . . 37 . . . . . . . . . . . . . . . 13 . 5 Explosive 83 | . 9 3 5 13 . . 15 . 4 1 3 . 2 3 5 . . . . . 1 3 2 . . . . . 13 . 1 . . Electromagnetic 30 | 14 11 . . . . . . . . . . . . . 5 . . . . . . . . . . . . . . . . . . Entropic 74 | . . . . . . . . . . . . . . . . . . . . 53 17 4 . . . . . . . . . . . Robot Hit Streak 35 | 7 6 8 13 7 6 . 17 12 22 4 6 18 5 2 19 . 12 8 . 18 12 22 20 11 2 3 16 19 35 8 14 6 29 Robot Miss Streak 10 | 2 7 4 4 3 3 . 10 . 6 2 1 . 8 6 7 . 4 4 . 2 3 7 2 3 1 1 . 1 4 4 2 2 3 Penetration Max 3 | . . . . . . . 1 . 1 . . . . 1 1 . 1 . . 3 1 2 . . . . . . 2 1 . . 1 Secondary Targets 24 | . . 1 4 . . . 4 . . . . . . . . . 1 . . 1 4 9 . . . . . . . . . . . Max Gunslinging Chain 1 | . . 1 1 . . . 1 . . . . . . . . . 1 . . 1 1 1 . . . . . . . . . . . Shots Hit Robots 3068 | 18 73 46 208 105 34 . 305 8 93 9 9 15 9 11 192 . 58 41 . 107 48 355 33 76 3 6 13 39 250 59 45 45 755 Core Hits 1685 | 11 58 31 98 59 17 . 182 3 72 6 13 4 27 22 127 . 30 14 2 89 30 175 13 34 3 2 8 16 144 26 23 21 325 Critical Kills 78 | . 1 . 1 . . . 10 . 2 . . 1 . 2 4 . . 2 1 5 8 10 . 9 . . 1 2 13 . . . 6 Critical Parts Destroyed 138 | . . . 1 . . . 6 . 3 . . 1 1 1 1 . 2 5 . 25 8 19 . 19 1 . 2 4 23 . . . 16 Critical Strikes 403 | 1 1 . 7 3 2 . 16 . 7 . . 3 1 3 13 . 4 9 1 45 16 31 1 33 1 . 4 7 65 6 8 5 110 Meltdown 1 | . . . . . . . . . . . . . . . 1 . . . . . . . . . . . . . . . . . . Destroy 214 | . 1 . 2 . . . 16 . 5 . . 2 1 3 4 . 2 9 1 28 13 29 . 28 1 . 4 7 36 . . . 22 Blast 166 | . . . 5 3 2 . . . 2 . . 1 . . 8 . 2 . . . . 1 1 5 . . . . 29 6 8 5 88 Corrupt 1 | 1 . . . . . . . . . . . . . . . . . . . . . . . . . . . . . . . . . Detonate 6 | . . . . . . . . . . . . . . . . . . . . 2 3 1 . . . . . . . . . . . Sunder 15 | . . . . . . . . . . . . . . . . . . . . 15 . . . . . . . . . . . . . Melee Attacks 62 | . . . . . . . . . . . . . . . 4 . . 14 1 . . . . . . . . . . . . 15 28 Impact . | . . . . . . . . . . . . . . . . . . . . . . . . . . . . . . . . . . Slashing 58 | . . . . . . . . . . . . . . . . . . 14 1 . . . . . . . . . . . . 15 28 Piercing 4 | . . . . . . . . . . . . . . . 4 . . . . . . . . . . . . . . . . . . Sneak Attacks 10 | . . . . . . . . . . . . . . . 1 . . . . . . . . . . . . . . . . 2 7 Combat Hostiles . | . . . . . . . . . . . . . . . . . . . . . . . . . . . . . . . . . . Follow-up Attacks . | . . . . . . . . . . . . . . . . . . . . . . . . . . . . . . . . . . Damage Inflicted 135876 | 287 1362 636 3421 3579 963 . 10104 143 3727 328 816 409 3867 811 8909 . 1610 692 38 9177 1666 11354 1562 2561 127 107 242 1276 12835 2565 2616 3011 45075 Guns 30356 | 200 571 370 2318 . . . 6485 143 827 . . . . . 1521 . 1248 287 38 2052 929 8556 103 . . . . . . . 158 . 4550 Cannons 75798 | . . . 739 2579 963 . 399 . 1706 201 524 409 187 297 3870 . 325 320 . 2028 . 618 997 2545 127 107 242 1276 9974 2466 2018 2190 38691 Explosions 26648 | 87 791 266 364 1000 . . 3220 . 1194 127 292 . 3680 514 3320 . . . . 5097 737 2180 462 16 . . . . 2861 . 440 . . Melee 2938 | . . . . . . . . . . . . . . . 198 . . 85 . . . . . . . . . . . . . 821 1834 Ramming 136 | . . . . . . . . . . . . . . . . . 37 . . . . . . . . . . . . 99 . . . Kinetic 100797 | 60 459 370 3057 2579 963 . 6884 143 2533 201 524 409 187 297 4921 . 1573 607 38 1181 345 9085 1100 2545 127 107 242 1276 9974 2466 1973 2190 42381 Thermal 8016 | 87 92 . . . . . 572 . 125 . . . 2980 . 1596 . . . . 601 499 385 . 16 . . . . . . 203 . 860 Explosive 15231 | . 699 266 364 1000 . . 2648 . 1069 127 292 . 700 514 1756 . . . . . 238 1795 462 . . . . . 2861 . 440 . . Electromagnetic 690 | 140 112 . . . . . . . . . . . . . 438 . . . . . . . . . . . . . . . . . . Impact . | . . . . . . . . . . . . . . . . . . . . . . . . . . . . . . . . . . Slashing 2740 | . . . . . . . . . . . . . . . . . . 85 . . . . . . . . . . . . . 821 1834 Piercing 198 | . . . . . . . . . . . . . . . 198 . . . . . . . . . . . . . . . . . . Entropic 8068 | . . . . . . . . . . . . . . . . . . . . 7395 584 89 . . . . . . . . . . . Highest Corruption 14 | . 1 1 . 1 1 . 6 6 6 . . 3 3 3 6 6 6 6 2 2 . 10 6 7 7 7 7 9 8 14 5 6 7 Average Corruption 4 | . 1 1 . 1 1 . 4 6 4 . . 2 3 3 4 6 6 5 2 2 . 5 6 6 7 7 7 8 4 10 3 5 5 Corruption Purged 28 | . . . . . . . . . 6 . . . . . . . . 4 . . . 4 . . . . . . . . . . 14 Corruption Blocked . | . . . . . . . . . . . . . . . . . . . . . . . . . . . . . . . . . . Effects 486 | . 10 6 . 9 9 . 41 6 17 . . 2 7 5 35 2 18 14 5 1 . 45 10 24 7 11 5 21 33 27 9 13 94 Message Errors 102 | . 2 4 . 3 . . 6 3 3 . . . 1 . 9 . 6 3 1 . . 11 1 3 1 4 1 2 7 3 3 6 19 Matter Fused 120 | . 3 . . 2 4 . 11 2 5 . . . 2 2 6 2 2 3 1 . . 11 5 6 3 1 1 8 6 7 3 4 20 Heat Flow Errors 47 | . 2 . . . 2 . 5 . . . . . . 1 4 . 2 2 1 1 . 4 1 1 1 1 2 . 3 1 . 2 11 Energy Discharges 54 | . . 1 . 2 1 . 5 1 3 . . . . . 3 . 1 1 1 . . 4 . 5 . . . 2 3 7 1 . 13 Parts Rejected 14 | . . . . . . . 1 . 1 . . 1 1 . . . 1 . . . . 1 1 . . . . . 1 . . . 6 Parts Fused 3 | . . . . . . . . . . . . . . . 1 . . . . . . 1 . 1 . . . . . . . . . Data Loss (minor) 60 | . . 1 . . . . 2 . 4 . . 1 2 . 4 . 3 2 1 . . 3 1 5 . 1 1 4 8 5 1 . 11 Data Loss (major) 22 | . 3 . . 1 1 . . . 1 . . . . 1 2 . 1 1 . . . 3 . . . . . 2 1 2 1 . 2 Misfires 15 | . . . . 1 1 . 2 . . . . . . . 2 . 1 . . . . . . 1 2 2 . . 2 . . 1 . Alerts 13 | . . . . . . . 1 . . . . . 1 . . . 1 1 . . . . 1 1 . 1 . 2 1 . . . 3 Misdirections 3 | . . . . . . . . . . . . . . . . . . . . . . 2 . . . . . . . 1 . . . Weapon Failures 33 | . . . . . . . 8 . . . . . . 1 4 . . 1 . . . 5 . 1 . 1 . 1 1 1 . . 9 Overload Shots . | . . . . . . . . . . . . . . . . . . . . . . . . . . . . . . . . . . Overflow Damage 6316 | . 12 30 11 103 44 . 174 . 109 32 . 61 497 30 142 . . . . 241 38 214 . 43 . . . 43 552 129 213 218 3380 Projectiles 4099 | . . . 11 69 44 . . . 56 10 . 61 25 25 52 . . . . 18 . . . 43 . . . 43 304 129 151 198 2860 Explosions 1665 | . 12 30 . 34 . . 174 . 53 22 . . 472 5 78 . . . . 223 38 214 . . . . . . 248 . 62 . . Melee 552 | . . . . . . . . . . . . . . . 12 . . . . . . . . . . . . . . . . 20 520 Knockbacks 273 | . . . 6 10 15 . 1 . 9 3 2 4 4 3 19 . 2 . . . . 2 . 20 1 . . 5 42 20 8 18 79 Impact 2 | . . . . . . . . . . . . . . . . . 1 . . . . . . . . . . . . 1 . . . Kinetic 257 | . . . 6 10 12 . 1 . 9 3 2 4 4 3 17 . 1 . . . . 2 . 20 1 . . 5 41 19 7 18 72 Secondary 14 | . . . . . 3 . . . . . . . . . 2 . . . . . . . . . . . . . 1 . 1 . 7 Self-Inflicted Damage 666 | . . 72 . 91 . . 73 . 60 . . . 27 34 21 . 17 . . . . 82 . . . . . . 92 49 48 . . Shots 18 | . . 2 . 4 . . 3 . 1 . . . 1 1 1 . . . . . . 2 . . . . . . 2 . 1 . . Rammed 4 | . . . . . . . . . . . . . . . . . 3 . . . . . . . . . . . . 1 . . . Targets Rammed 4 | . . . . . . . . . . . . . . . . . 3 . . . . . . . . . . . . 1 . . . Kicked . | . . . . . . . . . . . . . . . . . . . . . . . . . . . . . . . . . . Crushed . | . . . . . . . . . . . . . . . . . . . . . . . . . . . . . . . . . . Highest Temperature 459 | 40 261 32 284 274 211 . 231 60 141 108 267 459 66 156 360 . 287 235 267 263 24 231 225 315 90 111 149 16 354 315 360 193 357 Average Temperature 67 | 18 54 3 62 91 71 . 64 31 49 43 93 111 40 60 89 . 33 38 123 50 10 28 81 83 34 51 79 11 82 75 69 81 67 Received Heat Transfer 4129 | . 96 20 279 312 45 . 507 . 247 . 21 20 54 . 922 . 108 103 . 72 32 650 . 185 9 . . 51 216 24 72 . 84 Effects 12 | . . . . 4 . . . . . . . 1 . . 1 . . 1 . . . . . . . . . . 1 1 1 . 2 Shutdowns 1 | . . . . . . . . . . . . . . . . . . . . . . . . . . . . . . . 1 . . Energy Bleed 2 | . . . . . . . . . . . . . . . 1 . . 1 . . . . . . . . . . . . . . . Interference 7 | . . . . 4 . . . . . . . . . . . . . . . . . . . . . . . . 1 . . . 2 Matter Decay 2 | . . . . . . . . . . . . 1 . . . . . . . . . . . . . . . . . 1 . . . Siege Activations . | . . . . . . . . . . . . . . . . . . . . . . . . . . . . . . . . . . Martial Activations . | . . . . . . . . . . . . . . . . . . . . . . . . . . . . . . . . . . Shielding Activations . | . . . . . . . . . . . . . . . . . . . . . . . . . . . . . . . . . . Robots Disrupted . | . . . . . . . . . . . . . . . . . . . . . . . . . . . . . . . . . . Combat Hostiles . | . . . . . . . . . . . . . . . . . . . . . . . . . . . . . . . . . . Robots Corrupted 2 | . . . . . . . . . . . . . . . 1 . . . . . . . . . . . . . . . 1 . . Combat Hostiles 2 | . . . . . . . . . . . . . . . 1 . . . . . . . . . . . . . . . 1 . . Parts Fried 1 | . . . . . . . . . . . . . . . . . . . . . . . . . . . . . . . . . 1 Impact Corruptions 4 | . . . . . . . . . . . . . . . . . . . . . . . . . . . . . 1 . 1 . 2 Robots Melted 1 | . . . . . . . . . . . . . . . 1 . . . . . . . . . . . . . . . . . . Combat Hostiles 1 | . . . . . . . . . . . . . . . 1 . . . . . . . . . . . . . . . . . . Parts Melted 10 | . . . . . . . 1 . . . . . . . 2 . . . . 1 2 . . . . . . . . . 1 . 3 Heat Transferred 3347 | 100 50 . . . . . 350 . 100 . . . . . 1450 . . . . 350 400 275 . 50 . . . . . . 222 . . Parts Sabotaged 8 | . . . . . . . . . . . . . . . 2 . . . . . . 6 . . . . . . . . . . . Parts Stolen 1 | . . . . . . . . . . 1 . . . . . . . . . . . . . . . . . . . . . . . Parts Stripped . | . . . . . . . . . . . . . . . . . . . . . . . . . . . . . . . . . . Power Chain Reactions 3 | 1 1 . . . . . . . . . . . . . 1 . . . . . . . . . . . . . . . . . . Alert | -11 -10 -10 -9 -9 -9 -9 -6 -6 -6 -6 -6 -6 -6 -5 -5 -5 -5 -5 -5 -5 -4 -4 -4 -4 -4 -4 -4 -3 -3 -3 -2 -2 -2 ------- Run | Yrd Mat Min Mat Sto Rec Scr Fac Was Fac Low Low Zio Dee Pro Fac Was Fac Upp Upp War Pro Fac Was Fac Upp Upp Zhi Pro Res Tes Res Qua Frg Maximum Alert Level 5 | . 1 . 2 3 1 . 5 2 5 . . . . . 5 4 4 . . . . 5 3 5 . . . . 5 4 4 3 5 Low Security (%) 20 | 100 77 100 39 . 54 . 40 . . . . . . . . . . . . . . . . . . . . . 2 . . . . Level 1 10 | . 22 . 35 11 45 . . . 3 . . . . . 13 . . . . . . 4 . . . . . . 9 . . . . Level 2 10 | . . . 25 25 . . 10 100 10 . . . . . 22 . . . . . . 4 . 2 . . . . 12 . . 3 6 Level 3 21 | . . . . 63 . . 19 . 22 . . . . . 2 60 83 . . . . 17 100 11 . . . . 27 52 62 96 12 Level 4 10 | . . . . . . . 11 . 5 . . . . . 15 39 16 . . . . 28 . 28 . . . . 36 47 37 . . Level 5 21 | . . . . . . . 17 . 35 . . . . . 42 . . . . . . 44 . . . . . . 3 . . . 80 High Security 3 | . . . . . . . . . 22 . . . . . 2 . . . . . . . . 57 . . . . 6 . . . . Max Security . | . . . . . . . . . . . . . . . . . . . . . . . . . . . . . . . . . . Peak Influence 6266 | 15 270 93 698 913 277 . 1995 691 2124 . . . . . 2615 1100 1126 . . . . 2883 1011 2396 . . . . 1852 1448 1583 999 6266 Initial 1100 | . . 33 . 291 265 . . 691 392 . . . . . 372 1100 756 . . . . 263 1009 601 . . . . 150 1100 810 884 556 Average 1227 | 3 143 17 303 703 189 . 745 626 1461 . . . . . 1408 1091 918 . . . . 1568 948 1695 . . . . 1048 1145 1046 817 3566 Influence Increases 35147 | 40 579 179 1406 1272 381 . 3042 . 2400 50 205 . . 245 3399 . 693 410 20 1170 656 3854 40 2185 220 . 15 255 3273 804 1071 584 6699 Destroy 0b10 Robot/C 14560 | . 280 100 820 640 140 . 1200 . 880 40 120 . . 200 940 . 300 80 20 980 420 1180 . 720 40 . . 160 1380 240 240 180 3260 Destroy 0b10 Robot/NC 1410 | 40 75 10 125 105 45 . 180 . 60 . . . . 15 85 . 15 5 . 10 5 140 . 35 . . 15 15 165 30 20 40 175 Destroy Leader 2756 | . 78 20 252 166 . . 302 . 200 10 10 . . 30 178 . 64 10 . . 50 242 . 134 . . . 20 296 24 54 26 590 Allied During Kill 2655 | . . 3 . . . . 67 . 661 . . . . . . . 13 . . 120 151 82 . 559 . . . . 106 . . . 893 Trap Triggered on 0b10 10 | . . . . . . . . . . . . . . . . . . . . . . . . . . . . . . 10 . . . Successful Hack 1017 | . 21 . 40 25 25 . 107 . 132 . . . . . 123 . 29 . . . . 163 . 12 . . . . 99 55 25 47 114 Select Force Hacks 330 | . 60 . 90 30 120 . . . . . . . . . . . . . . . . 30 . . . . . . . . . . . Disable Machine 2190 | . . 15 30 120 15 . 405 . 210 . . . . . 345 . 15 . . . . 480 . 90 . . . . 105 135 . 75 150 Anti-Garrison Action 350 | . . . . . . . . . . . . . . . . . . . . . . . . 150 . . . . . . . . 200 Destroy Structure 2999 | . 65 16 49 126 21 . 256 . 92 . . . . . 468 . 32 . . . . 382 40 260 . . . . 522 70 147 66 387 Advance Influence 450 | . . . . . . . . . . . . . . . 300 . . . . . . . . . . . . . 150 . . . . Partial Spotted 570 | . . . . . . . 30 . . . . . . . 135 . . . . . . 75 . 15 . . . . 120 15 45 . 135 Lose Combat Pursuer 5850 | . . 15 . 60 15 . 495 . 165 . 75 . . . 825 . 225 315 . 60 30 1080 . 210 180 . . 60 330 225 540 150 795 Influence Decreases 29136 | 40 494 264 716 1282 949 112 1065 1416 837 917 510 952 . 130 909 1714 720 752 326 680 1133 1389 2064 648 1007 536 1088 255 1421 1273 940 1167 1430 Entered New Map 15418 | . . 52 . 399 415 112 . 1286 169 787 240 952 . . 43 1694 324 390 136 405 895 155 1874 258 887 306 1073 . . 811 632 689 434 Time Decay 9663 | 40 494 194 666 583 534 . 548 130 368 130 270 . . 120 546 20 286 342 190 255 238 644 190 130 120 230 15 255 571 302 238 278 736 Lost Part 1195 | . . 5 50 . . . 130 . 30 . . . . 10 310 . 70 20 . 20 . 190 . 10 . . . . 100 10 70 50 120 Lost Ally 1333 | . . 13 . . . . 210 . 270 . . . . . 10 . 40 . . . . 100 . 250 . . . . 300 . . . 140 Purge Threat 1527 | . . . . 300 . . 177 . . . . . . . . . . . . . . 300 . . . . . . 450 150 . 150 . Squads Dispatched 253 | . 3 . 10 5 . . 38 . 31 . . . . . 34 . 13 . . . . 33 . 22 . 1 . . 23 8 9 5 18 Investigation 99 | . 2 . 9 1 . . 15 . 10 . . . . . 16 . 7 . . . . 11 . 3 . 1 . . 7 3 2 1 11 Extermination 31 | . . . . . . . 6 . 2 . . . . . 3 . 1 . . . . 6 . . . . . . 4 3 2 2 2 Reinforcement 39 | . 1 . 1 . . . 7 . 5 . . . . . 4 . 3 . . . . 5 . . . . . . 3 . 3 2 5 Assault 67 | . . . . 2 . . 5 . 11 . . . . . 6 . 1 . . . . 11 . 18 . . . . 9 2 2 . . Garrison 17 | . . . . 2 . . 5 . 3 . . . . . 5 . 1 . . . . . . 1 . . . . . . . . . Intercept . | . . . . . . . . . . . . . . . . . . . . . . . . . . . . . . . . . . Searches Triggered . | . . . . . . . . . . . . . . . . . . . . . . . . . . . . . . . . . . Construction Impeded 6 | . . . . . . . . . 1 . . . . . 2 . . . . . . 1 . . . . . . 2 . . . . Haulers Reinforced 10 | . . . . . . . 1 . 3 . . . . . 2 . . . . . . 2 . . . . . . . . 1 1 . Active Scanning Responses . | . . . . . . . . . . . . . . . . . . . . . . . . . . . . . . . . . . Cargo Convoy Interrupts . | . . . . . . . . . . . . . . . . . . . . . . . . . . . . . . . . . . Stealth | -11 -10 -10 -9 -9 -9 -9 -6 -6 -6 -6 -6 -6 -6 -5 -5 -5 -5 -5 -5 -5 -4 -4 -4 -4 -4 -4 -4 -3 -3 -3 -2 -2 -2 --------- Run | Yrd Mat Min Mat Sto Rec Scr Fac Was Fac Low Low Zio Dee Pro Fac Was Fac Upp Upp War Pro Fac Was Fac Upp Upp Zhi Pro Res Tes Res Qua Frg Distress Signals 55 | . 1 1 4 3 . . 6 . . . . . . . 7 . 3 . . 2 . 3 . . . . . . 9 1 4 1 10 Communications Jammed . | . . . . . . . . . . . . . . . . . . . . . . . . . . . . . . . . . . Distress Signals . | . . . . . . . . . . . . . . . . . . . . . . . . . . . . . . . . . . Times Spotted 1571 | . 27 19 44 37 7 . 122 . 50 3 11 9 8 12 120 6 38 27 3 79 19 160 6 49 6 2 . 20 107 43 64 34 439 Peak Tracking Total 27 | . 3 6 4 6 5 . 11 . 6 3 3 9 5 6 18 6 9 8 6 16 6 27 3 10 9 2 . 7 10 9 19 14 13 Tactical Retreats 171 | . . 4 . 3 1 . 16 . 6 . 2 1 . . 19 . 7 6 . 3 1 26 . 5 2 . . 2 14 8 10 3 32 Traps | -11 -10 -10 -9 -9 -9 -9 -6 -6 -6 -6 -6 -6 -6 -5 -5 -5 -5 -5 -5 -5 -4 -4 -4 -4 -4 -4 -4 -3 -3 -3 -2 -2 -2 ------- Run | Yrd Mat Min Mat Sto Rec Scr Fac Was Fac Low Low Zio Dee Pro Fac Was Fac Upp Upp War Pro Fac Was Fac Upp Upp Zhi Pro Res Tes Res Qua Frg Traps Triggered 45 | . 2 . 4 1 . . 1 . 1 . . . . . 7 . . . . . . 3 . . . . . . 3 3 3 3 14 Indirectly . | . . . . . . . . . . . . . . . . . . . . . . . . . . . . . . . . . . Trap Hack Attempts . | . . . . . . . . . . . . . . . . . . . . . . . . . . . . . . . . . . Triggered . | . . . . . . . . . . . . . . . . . . . . . . . . . . . . . . . . . . Disarmed . | . . . . . . . . . . . . . . . . . . . . . . . . . . . . . . . . . . Reprogrammed 14 | . . . . . . . . . 9 . . . . . . . . . . . . 4 . . . . . . . 1 . . . Reused 1 | . . . . . . . . . . . . . . . . . . . . . . . . . . . . . . 1 . . . Traps Extracted . | . . . . . . . . . . . . . . . . . . . . . . . . . . . . . . . . . . Installed . | . . . . . . . . . . . . . . . . . . . . . . . . . . . . . . . . . . Triggered 1 | . . . . . . . . . . . . . . . . . . . . . . . . . . . . . . 1 . . . Machines | -11 -10 -10 -9 -9 -9 -9 -6 -6 -6 -6 -6 -6 -6 -5 -5 -5 -5 -5 -5 -5 -4 -4 -4 -4 -4 -4 -4 -3 -3 -3 -2 -2 -2 ---------- Run | Yrd Mat Min Mat Sto Rec Scr Fac Was Fac Low Low Zio Dee Pro Fac Was Fac Upp Upp War Pro Fac Was Fac Upp Upp Zhi Pro Res Tes Res Qua Frg Machines Disabled 153 | . . 1 2 8 1 . 27 . 14 . . 1 2 . 23 . 1 . . 1 . 32 . 7 . . . 1 7 9 . 5 11 Max in Single Turn 12 | . . 1 1 1 1 . 10 . 2 . . 1 2 . 12 . 1 . . 1 . 8 . 2 . . . 1 1 1 . 1 2 Garrison Access 9 | . . . . 1 . . 1 . . . . . . . . . 1 . . . . 2 . 1 . . . . 2 . . . 1 Machines Repaired . | . . . . . . . . . . . . . . . . . . . . . . . . . . . . . . . . . . Machines Dismantled . | . . . . . . . . . . . . . . . . . . . . . . . . . . . . . . . . . . Machines Sabotaged . | . . . . . . . . . . . . . . . . . . . . . . . . . . . . . . . . . . Overloaded Fab Kills . | . . . . . . . . . . . . . . . . . . . . . . . . . . . . . . . . . . Hacking | -11 -10 -10 -9 -9 -9 -9 -6 -6 -6 -6 -6 -6 -6 -5 -5 -5 -5 -5 -5 -5 -4 -4 -4 -4 -4 -4 -4 -3 -3 -3 -2 -2 -2 --------- Run | Yrd Mat Min Mat Sto Rec Scr Fac Was Fac Low Low Zio Dee Pro Fac Was Fac Upp Upp War Pro Fac Was Fac Upp Upp Zhi Pro Res Tes Res Qua Frg Machines Accessed 281 | . 10 1 15 17 10 4 38 . 23 . . 1 . . 28 . 13 . 2 3 1 32 . 8 . 1 4 . 21 12 7 11 19 Terminals 134 | . 7 . 10 12 4 . 15 . 9 . . . . . 12 . 5 . . . 1 15 . 3 . 1 . . 8 9 3 9 11 Fabricators 27 | . . . . . . . 4 . 4 . . . . . 2 . 1 . . . . 3 . 2 . . . . 4 2 1 . 4 Repair Stations 27 | . 1 . 2 2 . . 4 . 1 . . . . . 3 . 2 . . . . 4 . 1 . . . . 3 1 2 1 . Recycling Units 50 | . 2 . 1 2 6 . 8 . 8 . . . . . 8 . 3 . . . . 6 . 1 . . . . 2 . . . 3 Scanalyzers 13 | . . . 2 . . . 3 . . . . . . . 2 . . . . . . 2 . . . . . . 2 . 1 1 . Garrison Access 15 | . . . . 1 . . 4 . 1 . . . . . 1 . 2 . . . . 2 . 1 . . . . 2 . . . 1 Total Hacks 873 | . 30 1 49 44 21 33 139 . 50 . . 6 . . 74 . 35 . 2 8 7 131 . 19 . 3 17 . 59 33 20 42 50 Successful 542 | . 18 1 31 28 16 33 91 . 30 . . 6 . . 41 . 15 . 2 8 7 79 . 6 . 3 17 . 34 19 15 20 22 Failed 330 | . 12 . 18 15 5 . 48 . 20 . . . . . 33 . 20 . . . . 52 . 13 . . . . 25 14 5 22 28 Catastrophic 42 | . 1 . 3 . . . 5 . 2 . . . . . 7 . 4 . . . . 6 . 4 . . . . 5 . . . 5 Database Lockouts 1 | . . . . 1 . . . . . . . . . . . . . . . . . . . . . . . . . . . . . Manual 458 | . 28 . 29 22 19 . 78 . 34 . . 8 . . 42 . 21 . . . . 69 . 11 . . . . 27 11 11 23 25 Terminals 427 | . 26 . 27 30 11 . 59 . 19 . . . . . 35 . 16 . . . 7 60 . 9 . 3 . . 26 25 11 32 31 Fabricators 90 | . . . . . . . 14 . 14 . . . . . 6 . 1 . . . . 13 . 5 . . . . 16 4 3 . 14 Repair Stations 94 | . 2 . 12 10 . . 19 . 2 . . . . . 8 . 7 . . . . 12 . 2 . . . . 8 4 3 5 . Recycling Units 83 | . 2 . 1 3 10 . 15 . 13 . . . . . 13 . 9 . . . . 10 . 1 . . . . 2 . . . 4 Scanalyzers 83 | . . . 9 . . . 21 . . . . . . . 9 . . . . . . 31 . . . . . . 5 . 3 5 . Garrison Access 29 | . . . . 1 . . 11 . 2 . . . . . 3 . 2 . . . . 5 . 2 . . . . 2 . . . 1 Terminal Hacks 159 | . 5 1 1 9 3 33 11 . 4 . . 6 . . 7 . 3 . 2 8 7 10 . . . 3 17 . 6 9 4 6 4 Record 43 | . . . . . . 25 . . . . . . . . . . . . . 2 7 . . . . 3 5 . 1 . . . . Part Schematic 15 | . . . . 1 . . 1 . 1 . . 6 . . . . . . . . . . . . . . 4 . . 2 . . . Robot Schematic 1 | . . . . . 1 . . . . . . . . . . . . . . . . . . . . . . . . . . . . Robot Analysis 26 | . 5 . . 1 1 8 2 . . . . . . . 1 . . . . . . . . . . . 4 . 1 . . 1 2 Prototype ID Bank 13 | . . . . . . . . . . . . . . . 1 . . . . 5 . 3 . . . . 4 . . . . . . Open Door 11 | . . 1 . 5 . . . . . . . . . . 1 . . . 2 1 . . . . . . . . . 1 . . . Branch Access Points 4 | . . . . . . . 1 . . . . . . . 1 . 1 . . . . . . . . . . . . . 1 . . Terminal Index 7 | . . . 1 . 1 . 1 . 1 . . . . . . . 1 . . . . . . . . . . . . . . 1 1 Recycling Unit Index 1 | . . . . . . . 1 . . . . . . . . . . . . . . . . . . . . . . . . . . Unreport Threat 11 | . . . . 2 . . 2 . . . . . . . . . . . . . . 2 . . . . . . 3 1 . 1 . Locate Traps 4 | . . . . . . . 1 . . . . . . . . . . . . . . 2 . . . . . . . 1 . . . Reprogram Traps 4 | . . . . . . . . . 2 . . . . . . . . . . . . 1 . . . . . . . 1 . . . Recall Investigation 7 | . . . . . . . 2 . . . . . . . . . . . . . . 2 . . . . . . 1 . . 2 . Recall Reinforcements 4 | . . . . . . . . . . . . . . . 1 . . . . . . . . . . . . . . . 2 1 . Recall Assault 2 | . . . . . . . . . . . . . . . 1 . . . . . . . . . . . . . . 1 . . . Zone Layout 4 | . . . . . . . . . . . . . . . 1 . 1 . . . . . . . . . . . . 1 1 . . Proto ID Catalog 1 | . . . . . . . . . . . . . . . . . . . . . . . . . . . . . . . . . 1 Protovariant Controls 1 | . . . . . . . . . . . . . . . . . . . . . . . . . . . . . . 1 . . . Fabricator Hacks 30 | . . . . . . . 2 . 3 . . . . . 2 . . . . . . 5 . 2 . . . . 7 2 . . 7 Network Status 3 | . . . . . . . . . 1 . . . . . 1 . . . . . . 1 . . . . . . . . . . . Load Schematic 15 | . . . . . . . 1 . 1 . . . . . . . . . . . . 2 . 1 . . . . 3 2 . . 5 Build 12 | . . . . . . . 1 . 1 . . . . . 1 . . . . . . 2 . 1 . . . . 4 . . . 2 Repair Station Hacks 51 | . 2 . 8 7 . . 8 . 2 . . . . . 2 . 3 . . . . 8 . 2 . . . . 4 1 . 4 . Scan Component 26 | . 1 . 4 4 . . 4 . 1 . . . . . 1 . 2 . . . . 4 . 1 . . . . 2 . . 2 . Repair 24 | . 1 . 4 3 . . 4 . 1 . . . . . 1 . 1 . . . . 4 . 1 . . . . 2 . . 2 . Refit 1 | . . . . . . . . . . . . . . . . . . . . . . . . . . . . . . 1 . . . Recycling Unit Hacks 5 | . . . . 1 . . 3 . . . . . . . . . 1 . . . . . . . . . . . . . . . . Process 2 | . . . . . . . 2 . . . . . . . . . . . . . . . . . . . . . . . . . . Retrieve Matter 1 | . . . . . . . 1 . . . . . . . . . . . . . . . . . . . . . . . . . . Retrieve Components 2 | . . . . 1 . . . . . . . . . . . . 1 . . . . . . . . . . . . . . . . Scanalyzer 60 | . . . 6 . . . 21 . . . . . . . 6 . . . . . . 21 . . . . . . 2 . 2 2 . Insert Component 31 | . . . 4 . . . 9 . . . . . . . 3 . . . . . . 10 . . . . . . 1 . 2 2 . Analyze 29 | . . . 2 . . . 12 . . . . . . . 3 . . . . . . 11 . . . . . . 1 . . . . Garrison Access Hacks 7 | . . . . 1 . . 1 . . . . . . . . . 1 . . . . 2 . . . . . . 2 . . . . Seal Access 7 | . . . . 1 . . 1 . . . . . . . . . 1 . . . . 2 . . . . . . 2 . . . . Unauthorized Hacks 230 | . 11 . 16 10 13 . 45 . 21 . . . . . 24 . 7 . . . . 33 . 2 . . . . 13 7 9 8 11 Terminals 125 | . 9 . 12 9 6 . 22 . 6 . . . . . 10 . 1 . . . . 18 . 1 . . . . 8 6 3 8 6 Assimilate 5 | . . . . . . . 2 . . . . . . . 1 . . . . . . 2 . . . . . . . . . . . Botnet 71 | . 4 . 4 4 3 . 9 . 5 . . . . . 5 . 1 . . . . 9 . 1 . . . . 6 5 3 6 6 Disrupt 4 | . . . . . . . . . . . . . . . 2 . . . . . . 1 . . . . . . . . . 1 . Operators 7 | . . . . . . . 1 . . . . . . . 1 . . . . . . 1 . . . . . . 2 1 . 1 . Skim 38 | . 5 . 8 5 3 . 10 . 1 . . . . . 1 . . . . . . 5 . . . . . . . . . . . Fabricators 27 | . . . . . . . 5 . 7 . . . . . 3 . 1 . . . . 5 . . . . . . 2 . 3 . 1 Report 7 | . . . . . . . 1 . 2 . . . . . 1 . . . . . . 1 . . . . . . 1 . 1 . . Prioritize 2 | . . . . . . . . . . . . . . . 1 . . . . . . . . . . . . . 1 . . . . Liberate 12 | . . . . . . . 3 . 4 . . . . . 1 . 1 . . . . 2 . . . . . . . . 1 . . Haulers 5 | . . . . . . . 1 . 1 . . . . . . . . . . . . 2 . . . . . . . . 1 . . Recompile 1 | . . . . . . . . . . . . . . . . . . . . . . . . . . . . . . . . . 1 Repair Stations 16 | . . . 1 . . . 5 . . . . . . . 3 . . . . . . 2 . . . . . . 1 1 3 . . Mechanics 2 | . . . . . . . 1 . . . . . . . . . . . . . . . . . . . . . . . 1 . . Patch 14 | . . . 1 . . . 4 . . . . . . . 3 . . . . . . 2 . . . . . . 1 1 2 . . Recycling Units 55 | . 2 . 1 1 7 . 10 . 8 . . . . . 8 . 5 . . . . 7 . 1 . . . . 2 . . . 3 Reject 2 | . . . . . 1 . . . . . . . . . . . 1 . . . . . . . . . . . . . . . . Recyclers 4 | . . . . . 1 . 1 . . . . . . . . . 1 . . . . 1 . . . . . . . . . . . Mask 2 | . . . . . 1 . 1 . . . . . . . . . . . . . . . . . . . . . . . . . . Tunnel 8 | . 2 . 1 1 4 . . . . . . . . . . . . . . . . . . . . . . . . . . . . Fedlink 36 | . . . . . . . 8 . 8 . . . . . 8 . 3 . . . . 6 . 1 . . . . 1 . . . 1 Scrapoids 2 | . . . . . . . . . . . . . . . . . . . . . . . . . . . . . . . . . 2 Scraphulk 1 | . . . . . . . . . . . . . . . . . . . . . . . . . . . . . 1 . . . . Scanalyzers 3 | . . . 2 . . . . . . . . . . . . . . . . . . 1 . . . . . . . . . . . Extract 3 | . . . 2 . . . . . . . . . . . . . . . . . . 1 . . . . . . . . . . . Garrison Access 4 | . . . . . . . 3 . . . . . . . . . . . . . . . . . . . . . . . . . 1 Reprogram 1 | . . . . . . . 1 . . . . . . . . . . . . . . . . . . . . . . . . . . Intercept 1 | . . . . . . . 1 . . . . . . . . . . . . . . . . . . . . . . . . . . Watchers 1 | . . . . . . . 1 . . . . . . . . . . . . . . . . . . . . . . . . . . Jam 1 | . . . . . . . . . . . . . . . . . . . . . . . . . . . . . . . . . 1 Data Cores Recovered 6 | . . . 1 1 . . . . 1 . . . . . . . . . . . . . . . . . . . 2 . . . 1 Used 3 | . . . 1 . . . . . . . . . . . . . . . . . . . . . . . . . 1 . . . 1 Hacking Detections 197 | . 8 . 12 11 6 . 30 . 16 . . . . . 18 . 9 . . . . 23 . 6 . 1 . . 16 10 6 10 15 Full Trace Events 26 | . 1 . 2 . . . 2 . 1 . . . . . 4 . 4 . . . . 1 . 2 . 1 . . 3 1 . . 4 Feedback Events 6 | . . . 1 . . . . . . . . . . . 1 . . . . . . 1 . 1 . . . . 1 . . . 1 Corruption 3 | . . . . . . . . . . . . . . . . . . . . . . 1 . . . . . . 1 . . . 1 Hackware Fried 3 | . . . 1 . . . . . . . . . . . 1 . . . . . . . . 1 . . . . . . . . . Feedback Blocked 1 | . . . . . . . . . . . . . . . . . . . . . . . . . . . . . . . . . 1 Robot Schematics Acquired 4 | . . . . . 1 . . . . . . . . . . . . . . . . . . . . . . . . 2 . 1 . Robots Built 6 | . . . . . . . . . 1 . . . . . . . . . . . . . . . . . . . 5 . . . . Authchips . | . . . . . . . . . . . . . . . . . . . . . . . . . . . . . . . . . . Time 261 | . . . . . . . . . 49 . . . . . 76 . . . . . . . . . . . . . 136 . . . . Total Robot Build Rating 42 | . . . . . . . . . 2 . . . . . . . . . . . . . . . . . . . 40 . . . . Part Schematics Acquired 53 | . . . 9 1 . . 10 . 1 . . 6 . . 3 . . . . . . 11 . . . . 4 . 1 5 . 2 . Parts Built 13 | . . . . . . . 2 . . . . . . . . . . . . . . 3 . 2 . . . . 4 . . . 2 Authchips 3 | . . . . . . . . . . . . . . . . . . . . . . 2 . . . . . . . . . . 1 Time 440 | . . . . . . . 47 . . . . . . . . . . . . . . 112 . 95 . . . . 81 . . . 105 Total Part Build Rating 73 | . . . . . . . 10 . . . . . . . . . . . . . . 11 . 10 . . . . 28 . . . 14 Parts Repaired 22 | . 1 . 4 3 . . 4 . 1 . . . . . 1 . 1 . . . . 3 . . . . . . 2 . . 2 . Time 958 | . 26 . 134 108 . . 210 . 25 . . . . . 50 . 28 . . . . 174 . 50 . . . . 55 . . 98 . Parts Recycled . | . . . . . . . . . . . . . . . . . . . . . . . . . . . . . . . . . . Recycled Matter 19 | . . . . . . . 19 . . . . . . . . . . . . . . . . . . . . . . . . . . Retrieved Matter 15 | . . . . . . . 15 . . . . . . . . . . . . . . . . . . . . . . . . . . Retrieved Components 11 | . . . . 10 . . . . . . . . . . . . 1 . . . . . . . . . . . . . . . . Parts Scanalyzed 26 | . . . 2 . . . 9 . . . . . . . 3 . . . . . . 9 . . . . . . 1 . 1 1 . Part Schematics Acquired 24 | . . . 2 . . . 9 . . . . . . . 3 . . . . . . 9 . . . . . . 1 . . . . Parts Damaged 7 | . . . . . . . 1 . . . . . . . . . . . . . . 4 . . . . . . . . 1 1 . Bothacking | -11 -10 -10 -9 -9 -9 -9 -6 -6 -6 -6 -6 -6 -6 -5 -5 -5 -5 -5 -5 -5 -4 -4 -4 -4 -4 -4 -4 -3 -3 -3 -2 -2 -2 ------------ Run | Yrd Mat Min Mat Sto Rec Scr Fac Was Fac Low Low Zio Dee Pro Fac Was Fac Upp Upp War Pro Fac Was Fac Upp Upp Zhi Pro Res Tes Res Qua Frg Used RIF Installer . | . . . . . . . . . . . . . . . . . . . . . . . . . . . . . . . . . . Robots Hacked 1 | . . . . . . . . . . . . . . . 1 . . . . . . . . . . . . . . . . . . Non-combat 1 | . . . . . . . . . . . . . . . 1 . . . . . . . . . . . . . . . . . . Combat . | . . . . . . . . . . . . . . . . . . . . . . . . . . . . . . . . . . Robot Hacks Applied 1 | . . . . . . . . . . . . . . . 1 . . . . . . . . . . . . . . . . . . find_chute 1 | . . . . . . . . . . . . . . . 1 . . . . . . . . . . . . . . . . . . Relay Couplers Released 4 | . . . . . . . . . . . . . . . . . . . . . . 3 . 1 . . . . . . . . . Machine Destruction 1 | . . . . . . . . . . . . . . . . . . . . . . . . 1 . . . . . . . . . Programmers 3 | . . . . . . . . . . . . . . . . . . . . . . 3 . . . . . . . . . . . Fabnet Peak Effective % . | . . . . . . . . . . . . . . . . . . . . . . . . . . . . . . . . . . Robots Rewired 11 | . . . . . . . 1 . . . . . . . . . . . . 5 . . . . . 3 . 2 . . . . . Allies Hacked 6 | . . . . . . . 1 . . . . . . . . . . . . . . . . 2 . . . 2 1 . . . . Hacks Repelled 1 | . . . . . . . . . . . . . . . . . . . . . . . . . . . . . . . . . 1 Allies | -11 -10 -10 -9 -9 -9 -9 -6 -6 -6 -6 -6 -6 -6 -5 -5 -5 -5 -5 -5 -5 -4 -4 -4 -4 -4 -4 -4 -3 -3 -3 -2 -2 -2 -------- Run | Yrd Mat Min Mat Sto Rec Scr Fac Was Fac Low Low Zio Dee Pro Fac Was Fac Upp Upp War Pro Fac Was Fac Upp Upp Zhi Pro Res Tes Res Qua Frg Total Allies 92 | . . 3 . . . . 14 20 1 . . 4 . . 1 . 3 . . 5 . 2 18 . . 3 . 2 6 . . . 10 Largest Group 20 | . . 3 . . . . 4 20 20 . . 4 . . 1 . 3 . . 5 5 5 18 18 . 3 3 2 4 . . . 10 Highest-Rated Group 775 | . . 40 . . . . 109 775 775 . . 109 . . 10 . 87 . . 282 282 277 656 656 . 141 141 98 139 . . . 652 Highest-Rated Ally 139 | . . 16 . . . . 41 46 46 . . 31 . . 10 . 29 . . 68 68 68 50 50 . 47 47 56 139 . . . 67 Total Orders 48 | . . . . . . . 7 . . . . . . . . . . 5 3 19 . 3 . . . 1 1 . 3 . . . 6 STAY 18 | . . . . . . . 1 . . . . . . . . . . . . 11 . . . . . 1 1 . 1 . . . 3 FOLLOW 9 | . . . . . . . 1 . . . . . . . . . . . . 5 . . . . . . . . . . . . 3 EXPLORE 12 | . . . . . . . . . . . . . . . . . . 2 3 2 . 3 . . . . . . 2 . . . . RETURN 9 | . . . . . . . 5 . . . . . . . . . . 3 . 1 . . . . . . . . . . . . . Ally Attacks 780 | . . 12 . . . . 98 . 152 . . . . . . . 19 . . 1 23 21 . 158 . . . 3 72 . . . 221 Total Damage 19422 | . . 73 . . . . 1057 . 3409 . . . . . . . 274 . . 102 926 712 . 5321 . . . 120 1859 . . . 5569 Kills 107 | . . 1 . . . . 9 . 25 . . . . . . . 2 . . 1 5 6 . 26 . . . . 10 . . . 22 Allies Corrupted 3 | . . . . . . . . . . . . . . . . . 1 . . . . . . . . . . 1 . . . . 1 Allies Melted 3 | . . 1 . . . . . . . . . . . . . . . . . . . . . . . . . . . . . . 2 Intel | -11 -10 -10 -9 -9 -9 -9 -6 -6 -6 -6 -6 -6 -6 -5 -5 -5 -5 -5 -5 -5 -4 -4 -4 -4 -4 -4 -4 -3 -3 -3 -2 -2 -2 ------- Run | Yrd Mat Min Mat Sto Rec Scr Fac Was Fac Low Low Zio Dee Pro Fac Was Fac Upp Upp War Pro Fac Was Fac Upp Upp Zhi Pro Res Tes Res Qua Frg Active Infowar (turns) 8517 | . 1367 . . . . . 283 25 119 278 515 155 . . 1174 . . . . 2 . 76 . 190 154 465 43 . . . . 125 3546 Optics 3840 | . . . . . . . 169 . . . . . . . . . . . . . . . . . . . . . . . . 125 3546 Sensors 2058 | . . . . . . . 114 25 119 278 515 155 . . . . . . . . . . . 190 154 465 43 . . . . . . Terrain 1367 | . 1367 . . . . . . . . . . . . . . . . . . . . . . . . . . . . . . . . Decoding 1174 | . . . . . . . . . . . . . . . 1174 . . . . . . . . . . . . . . . . . . Cloaking 78 | . . . . . . . . . . . . . . . . . . . . 2 . 76 . . . . . . . . . . . Robot Analysis Total 26 | . 5 . . 1 1 8 2 . . . . . . . 1 . . . . . . . . . . . 4 . 1 . . 1 2 Derelict Logs Recovered 15 | . . 1 . . . . . . . 2 . 2 . 2 . . . 3 2 . 1 . . . 1 1 . . . . . . . Drone Launches 88 | . . . . . . . 59 . . . . . . . . . . 5 3 2 . 4 . . . . . . 15 . . . . Drone Recoveries 67 | . . . . . . . 53 . . . . . . . . . . 5 3 2 . 4 . . . . . . . . . . . Decoded 0b10 Intel 30 | . . . . . . . . . . . . . . . 30 . . . . . . . . . . . . . . . . . . Traps 8 | . . . . . . . . . . . . . . . 8 . . . . . . . . . . . . . . . . . . Items 17 | . . . . . . . . . . . . . . . 17 . . . . . . . . . . . . . . . . . . Machines 2 | . . . . . . . . . . . . . . . 2 . . . . . . . . . . . . . . . . . . Patrols 2 | . . . . . . . . . . . . . . . 2 . . . . . . . . . . . . . . . . . . Guards 1 | . . . . . . . . . . . . . . . 1 . . . . . . . . . . . . . . . . . . Exploration | -11 -10 -10 -9 -9 -9 -9 -6 -6 -6 -6 -6 -6 -6 -5 -5 -5 -5 -5 -5 -5 -4 -4 -4 -4 -4 -4 -4 -3 -3 -3 -2 -2 -2 ------------- Run | Yrd Mat Min Mat Sto Rec Scr Fac Was Fac Low Low Zio Dee Pro Fac Was Fac Upp Upp War Pro Fac Was Fac Upp Upp Zhi Pro Res Tes Res Qua Frg Turns Passed 33407 | 152 1785 797 2543 1808 1501 1455 2504 274 1106 278 583 552 419 265 1607 51 637 770 391 1205 514 2328 387 637 254 481 133 653 1844 666 509 601 3717 Spaces Moved 40263 | 64 957 414 1245 898 882 901 3482 371 1728 568 1148 1108 988 531 2286 102 819 868 512 1345 712 2831 427 945 549 812 207 1027 3014 1170 1085 984 5283 Core 2 | 2 . . . . . . . . . . . . . . . . . . . . . . . . . . . . . . . . . Treads 5359 | 62 957 414 1245 898 882 901 . . . . . . . . . . . . . . . . . . . . . . . . . . . Legs . | . . . . . . . . . . . . . . . . . . . . . . . . . . . . . . . . . . Wheels . | . . . . . . . . . . . . . . . . . . . . . . . . . . . . . . . . . . Hover 34902 | . . . . . . . 3482 371 1728 568 1148 1108 988 531 2286 102 819 868 512 1345 712 2831 427 945 549 812 207 1027 3014 1170 1085 984 5283 Flight . | . . . . . . . . . . . . . . . . . . . . . . . . . . . . . . . . . . Fastest Speed 21 | 50 160 160 160 160 160 160 40 43 33 33 38 23 38 38 23 48 46 58 58 55 55 31 44 28 39 39 36 27 30 21 22 23 24 Average Speed 57 | 156 160 160 160 160 160 160 41 43 44 43 39 37 38 38 42 48 49 58 58 57 55 50 48 43 39 39 38 37 36 36 30 31 33 Slowest Speed 240 | 160 160 160 240 160 160 160 99 43 98 44 44 38 38 38 127 48 115 58 58 58 55 61 137 50 39 39 39 114 113 40 36 116 131 Overloaded Moves 515 | . . . . . . . . . 15 41 . 23 . . 62 . . . . . . 53 . 12 . . . 11 3 92 164 7 32 Propulsion Burnouts . | . . . . . . . . . . . . . . . . . . . . . . . . . . . . . . . . . . Robots Hopped . | . . . . . . . . . . . . . . . . . . . . . . . . . . . . . . . . . . Potential Cave-ins . | . . . . . . . . . . . . . . . . . . . . . . . . . . . . . . . . . . Cave-ins Triggered . | . . . . . . . . . . . . . . . . . . . . . . . . . . . . . . . . . . Teleports 5 | . . . . . . . . . . . . . . . . . . . . . . . . . . . . . . 1 . 2 2 Exploration Rate (%) 72 | 3 96 53 96 92 95 81 75 96 41 67 93 85 86 73 61 96 23 86 92 94 83 51 97 26 64 60 60 94 65 85 28 82 74 Regions Visited 33 Branch Regions 20 Pre-discovered Areas 16 | . 3 . 1 2 4 . 1 . . . . . . . . . . 1 . . 1 . . . . . 3 . . . . . . Known Exits Taken 17 | . . 1 1 1 . . . . 1 1 1 . . 1 . . 1 1 . . . . . 1 1 1 1 1 1 1 1 . . Unknown Exits Taken 10 | 1 1 . . . 1 1 . . . . . 1 1 . . . . . 1 1 1 . . . . . . . . . . 1 . Scrap Searched 31 | . . . . . . 3 . . . 1 4 3 . 5 . . . 5 3 . 2 . . . 1 3 . 1 . . . . . Spaces Dug 386 | . . . 8 9 . . 88 . 13 21 3 . . 2 57 . 11 14 1 . . 65 1 5 . 6 . 5 29 9 8 9 22 Terrain Destroyed 2300 | . 70 16 43 133 18 . 318 . 115 24 47 . 67 108 248 . 19 23 1 89 79 223 44 71 4 15 . 32 257 30 51 24 131 Melee 30 | . . . . . . . . . . . . . . . . . . 13 1 . . . . . . . . . . . . 5 11 Projectile 762 | . . . 11 51 18 . 16 . 25 3 14 . 5 10 59 . 19 9 . 34 25 55 10 43 4 15 . 32 105 30 30 19 120 AOE 1502 | . 70 16 32 82 . . 302 . 90 21 33 . 62 98 189 . . . . 52 53 167 34 28 . . . . 152 . 21 . . Terrain Rammed . | . . . . . . . . . . . . . . . . . . . . . . . . . . . . . . . . . . Walls Destroyed . | . . . . . . . . . . . . . . . . . . . . . . . . . . . . . . . . . . Machines Disabled . | . . . . . . . . . . . . . . . . . . . . . . . . . . . . . . . . . . Actions | -11 -10 -10 -9 -9 -9 -9 -6 -6 -6 -6 -6 -6 -6 -5 -5 -5 -5 -5 -5 -5 -4 -4 -4 -4 -4 -4 -4 -3 -3 -3 -2 -2 -2 --------- Run | Yrd Mat Min Mat Sto Rec Scr Fac Was Fac Low Low Zio Dee Pro Fac Was Fac Upp Upp War Pro Fac Was Fac Upp Upp Zhi Pro Res Tes Res Qua Frg Total 46996 | 88 1096 490 1594 1111 925 919 4189 482 1917 588 1231 1231 1016 563 2653 104 968 1060 605 1663 783 3386 563 1073 580 962 249 1243 3453 1325 1193 1193 6500 Wait 2534 | . 33 28 139 102 14 . 287 84 45 9 37 84 6 7 74 . 62 129 63 158 39 177 66 30 24 89 1 108 125 27 24 84 379 Move 40233 | 63 956 413 1244 897 881 900 3482 370 1727 567 1147 1107 987 530 2286 101 818 867 511 1344 711 2831 426 944 548 811 206 1026 3013 1169 1084 983 5283 Hop . | . . . . . . . . . . . . . . . . . . . . . . . . . . . . . . . . . . Pick Up 439 | 4 13 1 34 7 4 6 56 6 16 1 3 5 2 1 27 . 12 5 6 22 1 44 10 10 . 3 4 3 28 13 12 15 65 Fast Attach 259 | 6 1 1 8 3 . . 20 . 6 1 2 9 5 . 23 . 5 6 3 12 3 26 5 4 . . 7 3 8 7 4 11 70 Attach 224 | . 1 2 8 . . . 31 1 9 . 1 2 . 1 26 2 6 4 2 6 2 26 2 2 . . 3 . 15 7 9 15 41 Detach 138 | . . 1 3 . . . 14 . 7 . 1 4 1 . 9 1 . 5 4 10 2 12 3 3 . . 2 1 3 5 2 10 35 Swap 677 | . 17 7 23 20 1 4 75 9 22 3 16 7 5 8 48 . 11 6 4 17 . 63 26 23 6 3 4 20 89 32 16 9 83 Drop 507 | 1 5 1 36 9 4 9 52 7 14 2 4 9 6 . 19 . 8 1 10 36 2 50 10 12 . 4 9 8 30 21 9 15 104 Fire 1745 | 14 70 36 99 73 21 . 171 2 71 5 18 4 4 16 125 . 43 23 1 58 23 149 15 42 2 10 13 24 137 43 33 31 369 Melee 62 | . . . . . . . . . . . . . . . 4 . . 14 1 . . . . . . . . . . . . 15 28 Ram 4 | . . . . . . . . . . . . . . . . . 3 . . . . . . . . . . . . 1 . . . Kick . | . . . . . . . . . . . . . . . . . . . . . . . . . . . . . . . . . . Crush . | . . . . . . . . . . . . . . . . . . . . . . . . . . . . . . . . . . Escape Stasis 32 | . . . . . . . . . . . . . . . 12 . . . . . . 8 . . . . . . . . . 5 7 Rewire 103 | . . . . . . . 1 3 . . 2 . . . . . . . . . . . . 3 . 42 . 49 . . . . 3 Trap . | . . . . . . . . . . . . . . . . . . . . . . . . . . . . . . . . . . Miscellaneous 39 | . . . . . . . . . . . . . . . . . . . . . . . . . . . . 1 5 . . . 33 Route ------- -11/Scrapyard -10/Materials (discovered 5 exits: *Mat x3 / *Min / Sub) -10/Mines (discovered 2 exits: *Mat x2) -9/Materials (discovered 7 exits: *Mat x3 / *Min x2 / *Sto x2) -9/Storage (discovered 2 exits: *Mat / *Rec) -9/Recycling (discovered 2 exits: [*Fac] / *Scr) -9/Scraptown -6/Factory (discovered 4 exits: *Fac x2 / *Low x2) -6/Waste -6/Factory (discovered 3 exits: *Fac x2 / *Low) -6/Lower Caves -6/Lower Caves (discovered 2 exits: *Fac / *Zio) -6/Zion (discovered 2 exits: [*Dee] / [*Pro]) -6/Deep Caves -5/Proximity Caves -5/Factory (discovered 7 exits: *Fac x3 / *Upp x2 / *Ext x2) -5/Waste -5/Factory (discovered 4 exits: *Upp x2 / *Ext x2) -5/Upper Caves -5/Upper Caves (discovered 2 exits: *Fac / *War) -5/Warlord -4/Proximity Caves -4/Factory (discovered 2 exits: Res / *Upp) -4/Waste -4/Factory (discovered 2 exits: Res / *Upp) -4/Upper Caves -4/Upper Caves (discovered 2 exits: *Res / *Zhi) -4/Zhirov -3/Proximity Caves -3/Research (discovered 5 exits: *Res x2 / *Arm / *Tes x2) -3/Testing -2/Research (discovered 2 exits: *Qua x2) -2/Quarantine (discovered 3 exits: [*Acc] / [*Sec] / *Frg) -2/Protoforge 0bPrime History --------- Turn | Location | Event 12 | -11/Scrapyard | Discovered new exit (range 15) 153 | -11/Scrapyard | Entered Materials 306 | -10/Materials | Build established: Mutant 338 | -10/Materials | Discovered new exit (range 16) 555 | -10/Materials | Repaired Lgt. Assault Rifle 578 | -10/Materials | Discovered new exit (range 10) 1029 | -10/Materials | Discovered new exit (range 7) 1155 | -10/Materials | Discovered new exit (range 7) 1670 | -10/Materials | Identified exit to Subcaves 1716 | -10/Materials | Loaded intel: 9 trap records 1778 | -10/Materials | Learned location of Storage (-9) 1793 | -10/Materials | Learned Storage trap positions 1852 | -10/Materials | Learned 2 Storage zone layouts 1938 | -10/Materials | Entered Mines 1939 | -10/Mines | Identified exit to Materials 1966 | -10/Mines | Learned 2 Materials zone layouts 2190 | -10/Mines | A weapon hastily lodged in a ceiling crevice suddenly fell to the ground 2230 | -10/Mines | Found the Drone Emporium 2238 | -10/Mines | Found Prototype Device 2295 | -10/Mines | Assisted by bots powering up and referring to "LRC-V3" 2379 | -10/Mines | Assembled infested the area 2735 | -10/Mines | Entered Materials 2735 | -9/Materials | Evolved 2 slots: Weapon x2 2736 | -9/Materials | Identified exit to Mines 2769 | -9/Materials | Discovered exit to Mines (range 15) 2800 | -9/Materials | Discovered new exit (range 16) 2991 | -9/Materials | Lost 3 parts (1p1u1w) 3000 | -9/Materials | Discovered new exit (range 4) 3266 | -9/Materials | Build established: Scavenger-Tank 3318 | -9/Materials | Hacking Suite fried by hacking feedback 3477 | -9/Materials | Identified Splice Drone Bay 3814 | -9/Materials | Discovered new exit (range 8) 3936 | -9/Materials | Learned Storage stockpile data 3995 | -9/Materials | Identified exit to Materials 3995 | -9/Materials | Identified exit to Storage 4081 | -9/Materials | Learned location of 3 exits from Materials 4109 | -9/Materials | Learned Storage terminal intel 4125 | -9/Materials | Loaded intel: 2 repair station locations 4234 | -9/Materials | Learned location of 3 exits from Materials 4562 | -9/Materials | Build established: Scavenger-Gunner 4861 | -9/Materials | Repaired Hvy. Assault Rifle 4894 | -9/Materials | Build established: Gunner 4900 | -9/Materials | Repaired Assault Cannon 4934 | -9/Materials | Repaired Imp. Treads 4967 | -9/Materials | Repaired Imp. Treads 5278 | -9/Materials | Entered Storage 5279 | -9/Storage | Identified exit to Recycling 5281 | -9/Storage | Loaded intel: 12 trap records 5283 | -9/Storage | Loaded intel: 17 terminal locations 5391 | -9/Storage | Garrison activated, responded to threat 5678 | -9/Storage | First assault squad dispatched 5679 | -9/Storage | Garrison activated, responded to threat 6028 | -9/Storage | Used back door to open Recycling access 6038 | -9/Storage | Learned Materials emergency access door positions 6115 | -9/Storage | Learned location of Zion (-6) 6138 | -9/Storage | Loaded intel: 1 garrison access location 6173 | -9/Storage | Learned Materials emergency access door positions 6177 | -9/Storage | Repaired Imp. Treads 6204 | -9/Storage | Learned Materials emergency access door positions 6216 | -9/Storage | Repaired Assault Cannon 6256 | -9/Storage | Repaired Assault Cannon 6673 | -9/Storage | Core integrity fell below 50% 6880 | -9/Storage | Central database locked down 7086 | -9/Storage | Entered Recycling 7442 | -9/Recycling | Discovered new exit (range 14) 8545 | -9/Recycling | Scanned before Scraplab entrance 8571 | -9/Recycling | Entered Scraplab 8584 | -9/Recycling | Discovered new exit (range 2) 8587 | -9/Recycling | Entered Scraptown 8587 | -9/Scraptown | System corruption cleaned by C-Scrubber 8998 | -9/Scraptown | Visited UFD Registry 8998 | -9/Scraptown | Registered with UFD as "Fibermachine" 9046 | -9/Scraptown | Visited Cyclists 9090 | -9/Scraptown | Visited Comm Corps 9345 | -9/Scraptown | Visited Chapter 10 9392 | -9/Scraptown | Visited Junk Repository 9631 | -9/Scraptown | Visited Analyses Database 9672 | -9/Scraptown | Visited Science Testing Area 9687 | -9/Scraptown | Visited Modified Component R&D 9720 | -9/Scraptown | Visited Research Penetration Think Tank 9760 | -9/Scraptown | Visited Curators Association 9788 | -9/Scraptown | Visited Derelict Rescue Squad 9798 | -9/Scraptown | Found DRS Beacon 9956 | -9/Scraptown | Met Optimus 9956 | -9/Scraptown | Accepted into 0bPrime 10036 | -9/Scraptown | Discovered new exit (range 5) 10042 | -9/Scraptown | Entered Factory 10042 | -6/Factory | Evolved 6 slots: Propulsion x4, Utility x2 10138 | -6/Factory | Garrison activated, responded to threat 10186 | -6/Factory | Discovered new exit (range 6) 10255 | -6/Factory | Identified exit to Factory 10388 | -6/Factory | Identified exit to Lower Caves 10476 | -6/Factory | Loaded intel: 8 recycling unit locations 10525 | -6/Factory | Learned location of Protoforge (-2) 10553 | -6/Factory | Learned Hub_04(d) garrison access intel 10638 | -6/Factory | Build established: Hacker-Gunner 10690 | -6/Factory | Learned 2 Proximity Caves zone layouts 10783 | -6/Factory | Learned Extension stockpile data 10832 | -6/Factory | Learned 4 Proximity Caves zone layouts 10854 | -6/Factory | Repaired Broken Cmb. Airjet 10889 | -6/Factory | Learned 2 Upper Caves zone layouts 10907 | -6/Factory | Repaired Fission Core 10959 | -6/Factory | Repaired Hvy. Machine Gun 11096 | -6/Factory | Fabricated Weapon Mount (x2) 11116 | -6/Factory | Destroyed 7 combat bots 11260 | -6/Factory | Spotted B-75 Beast 11540 | -6/Factory | Lost 5 parts (1p3n1w) 11609 | -6/Factory | Repaired Imp. Heavy Machine Gun 11665 | -6/Factory | Garrison activated, responded to threat 11676 | -6/Factory | Lost 3 allies 11676 | -6/Factory | Found Prototype Launcher 11677 | -6/Factory | Found Prototype Launcher 11678 | -6/Factory | Identified Scatter Rocket Array (x2) 11702 | -6/Factory | Found Scatter Rocket Array 11792 | -6/Factory | First assault squad dispatched 11925 | -6/Factory | Destroyed 10 combat bots 11933 | -6/Factory | Garrison activated, responded to threat 12239 | -6/Factory | Found Scatter Rocket Array 12322 | -6/Factory | Build established: Scavenger-Gunner 12546 | -6/Factory | Manually triggered Chute Trap 12546 | -6/Factory | Sucked down chute 12546 | -6/Factory | Entered Waste 12547 | -6/Waste | Joined by Warlord forces that had cleared the area 12716 | -6/Waste | Discovered new exit (range 13) 12778 | -6/Waste | Identified exit to Factory 12820 | -6/Waste | Entered Factory 12820 | -6/Factory | Accompanied by 20 allies 12907 | -6/Factory | Fabricated I-25 Savior (x1) 12949 | -6/Factory | Discovered exit to Factory (range 11) 12985 | -6/Factory | Garrison activated, responded to threat 13025 | -6/Factory | Lost 4 allies 13064 | -6/Factory | Discovered exit to Lower Caves (range 11) 13123 | -6/Factory | Repaired Cmb. Airjet 13170 | -6/Factory | First assault squad dispatched 13215 | -6/Factory | Loaded intel: 8 recycling unit locations 13277 | -6/Factory | Discovered exit to Factory (range 13) 13310 | -6/Factory | Build established: Gunner 13600 | -6/Factory | Spotted B-75 Beast 13677 | -6/Factory | High security lockdown imminent 13757 | -6/Factory | High security lockdown engaged 13926 | -6/Factory | Entered Lower Caves 13937 | -6/Lower Caves | Encountered a Warlord checkpoint 14092 | -6/Lower Caves | Learned Factory emergency access door positions 14093 | -6/Lower Caves | Learned location of 1 exit from Factory 14123 | -6/Lower Caves | Discovered new exit (range 6) 14203 | -6/Lower Caves | Build established: Skirmisher 14203 | -6/Lower Caves | Identified exit to Lower Caves 14204 | -6/Lower Caves | Entered another Lower Caves area 14241 | -6/Lower Caves | Discovered exit to Factory (range 11) 14384 | -6/Lower Caves | Found Alien Artifact 14384 | -6/Lower Caves | Identified Core Expander 14384 | -6/Lower Caves | Installed Core Expander, added new Propulsion slot 14472 | -6/Lower Caves | Encountered a Warlord checkpoint 14520 | -6/Lower Caves | Discovered new exit (range 15) 14526 | -6/Lower Caves | Identified exit to Zion 14686 | -6/Lower Caves | Attracted the attention of an 0b10 checkpoint 14739 | -6/Lower Caves | Spotted B-75 Beast 14787 | -6/Lower Caves | Entered Zion 14800 | -6/Zion | Gained Derelict followers 14814 | -6/Zion | Received a visual enhancement algorithm 14814 | -6/Zion | Ran a visual enhancement algorithm 14816 | -6/Zion | Ran a visual enhancement algorithm 14816 | -6/Zion | Ran a visual enhancement algorithm 14816 | -6/Zion | Ran a visual enhancement algorithm 14819 | -6/Zion | Discovered new exit (range 12) 14830 | -6/Zion | Learned Factory terminal intel 14931 | -6/Zion | Learned Factory emergency access door positions 14942 | -6/Zion | Found Prototype Processor 14942 | -6/Zion | Identified Exp. Core Analyzer 14945 | -6/Zion | Found Prototype Processor 14945 | -6/Zion | Identified Exp. Targeting Computer 14956 | -6/Zion | Found Prototype Processor 14956 | -6/Zion | Identified Exp. Target Analyzer 14959 | -6/Zion | Found Prototype Processor 14959 | -6/Zion | Identified Exp. Armor Integrity Analyzer 14968 | -6/Zion | Found Faulty Exp. Targeting Computer 14994 | -6/Zion | Found Prototype Energy Gun 14994 | -6/Zion | Identified Storm Laser 15049 | -6/Zion | Turned away by Imprinter 15109 | -6/Zion | Given A8's code to call for help 15241 | -6/Zion | Build established: Gunner 15295 | -6/Zion | Attacked by Zionites 15297 | -6/Zion | Destroyed Imprinter 15301 | -6/Zion | Extracted access codes from Imprinter's data core 15326 | -6/Zion | Opened final containment barrier to the Deep Caves 15338 | -6/Zion | Discovered new exit (range 3) 15338 | -6/Zion | Saw the warning signs outside the Deep Caves entrance 15339 | -6/Zion | Entered Deep Caves 15412 | -6/Deep Caves | Z-Facility disabled 15482 | -6/Deep Caves | Found Prototype Protection 15482 | -6/Deep Caves | Identified Zio. Weapon Casing 15542 | -6/Deep Caves | Found Zio. Weapon Casing 15545 | -6/Deep Caves | Found Zio. Weapon Casing 15583 | -6/Deep Caves | Discovered new exit (range 6) 15758 | -6/Deep Caves | Entered Proximity Caves 15770 | -5/Proximity Caves | Learned Factory stockpile data 15832 | -5/Proximity Caves | Spotter reported a threat 15935 | -5/Proximity Caves | Spotter reported a threat 15970 | -5/Proximity Caves | Discovered exit to Factory (range 5) 16023 | -5/Proximity Caves | Entered Factory 16023 | -5/Factory | Evolved 2 slots: Utility x2 16024 | -5/Factory | Identified exit to Extension 16027 | -5/Factory | Loaded intel: 28 terminal locations 16123 | -5/Factory | Lost 3 parts (1n2w) 16194 | -5/Factory | Loaded intel: 8 recycling unit locations 16277 | -5/Factory | Discovered new exit (range 8) 16531 | -5/Factory | Repaired Weapon Mount? 16615 | -5/Factory | Garrison activated, responded to threat 16623 | -5/Factory | First assault squad dispatched 16718 | -5/Factory | Lost 3 parts (1n1u1w) 16793 | -5/Factory | Identified exit to Upper Caves 16873 | -5/Factory | Garrison activated, responded to threat 16953 | -5/Factory | Destroyed 7 combat bots 17138 | -5/Factory | Lost 6 parts (4n2u) 17139 | -5/Factory | Spotted B-75 Beast 17181 | -5/Factory | Discovered new exit (range 16) 17231 | -5/Factory | Lost 4 parts (2n2w) 17480 | -5/Factory | Build established: Hacker-Gunner 17538 | -5/Factory | Adv. System Shield fried by hacking feedback 17581 | -5/Factory | Garrison activated, responded to threat 17586 | -5/Factory | High security lockdown imminent 17607 | -5/Factory | Destroyed 8 combat bots 17621 | -5/Factory | Discovered new exit (range 11) 17630 | -5/Factory | Sucked down chute 17630 | -5/Factory | Entered Waste 17643 | -5/Waste | Spotted C-40 Crusher 17647 | -5/Waste | Spotted C-40 Crusher 17651 | -5/Waste | Spotted C-40 Crusher 17656 | -5/Waste | Lost 9 parts (2n2u5w) 17658 | -5/Waste | Spotted C-40 Crusher 17659 | -5/Waste | Spotted C-40 Crusher 17665 | -5/Waste | Spotted C-40 Crusher 17673 | -5/Waste | Discovered new exit (range 14) 17681 | -5/Waste | Entered Factory 17733 | -5/Factory | Loaded intel: 8 recycling unit locations 17823 | -5/Factory | Garrison activated, responded to threat 17907 | -5/Factory | Core integrity fell below 50% 17981 | -5/Factory | First assault squad dispatched 18075 | -5/Factory | Repaired Cmb. Gravmag System 18308 | -5/Factory | Lost 5 parts (3n2w) 18318 | -5/Factory | Entered Upper Caves 18319 | -5/Upper Caves | Identified exit to Upper Caves 18344 | -5/Upper Caves | Learned Factory terminal intel 18402 | -5/Upper Caves | Learned Factory interactive machine intel 18568 | -5/Upper Caves | Encountered a Warlord checkpoint 18599 | -5/Upper Caves | Ambushed by wild Derelicts 18673 | -5/Upper Caves | Build established: Gunner 18850 | -5/Upper Caves | Attracted the attention of an 0b10 checkpoint 18984 | -5/Upper Caves | Build established: Tank 19088 | -5/Upper Caves | Entered another Upper Caves area 19118 | -5/Upper Caves | Discovered new exit (range 4) 19304 | -5/Upper Caves | Discovered new exit (range 77) 19346 | -5/Upper Caves | Learned 4 Factory zone layouts 19479 | -5/Upper Caves | Entered Warlord 19501 | -5/Warlord | System corruption cleaned by Quarantine Array 19649 | -5/Warlord | Discovered new exit (range 73) 19769 | -5/Warlord | Visited the Vortex Lab 19772 | -5/Warlord | Found Prototype Energy Gun 19773 | -5/Warlord | Found Prototype Energy Gun 19776 | -5/Warlord | Found Prototype Energy Cannon 19778 | -5/Warlord | Found Prototype Energy Cannon 19779 | -5/Warlord | Found Prototype Launcher 19789 | -5/Warlord | Warlord's base attacked by MAIN.C 19816 | -5/Warlord | Rebuked by Warlord 19845 | -5/Warlord | Build established: Commander-Gunner 19919 | -5/Warlord | Identified Vortex Cannon 19935 | -5/Warlord | Found Prototype Reactor 19945 | -5/Warlord | Found Prototype Device 19945 | -5/Warlord | Identified Thermal Barrier 19952 | -5/Warlord | Found Prototype Device 19952 | -5/Warlord | Identified Exp. Cloaking Device 20090 | -5/Warlord | Warlord forces counterattacked 20098 | -5/Warlord | Destroyed 11 combat bots 20136 | -5/Warlord | Spotted Striker 20140 | -5/Warlord | Destroyed Striker 20214 | -5/Warlord | Spotted B-75 Beast 20214 | -5/Warlord | Spotted B-86 Titan 20224 | -5/Warlord | Destroyed B-86 Titan 20240 | -5/Warlord | Destroyed B-75 Beast 20263 | -5/Warlord | Lost 5 allies 20294 | -5/Warlord | Spotted Striker 20297 | -5/Warlord | Spotted Striker 20297 | -5/Warlord | Identified Vortex Catalyst Activator 20298 | -5/Warlord | Destroyed Striker 20319 | -5/Warlord | Destroyed 11 combat bots 20348 | -5/Warlord | Identified Vortex Rail 20389 | -5/Warlord | Spotted Executioner 20389 | -5/Warlord | Destroyed Striker 20397 | -5/Warlord | Destroyed Executioner 20429 | -5/Warlord | Destroyed 13 combat bots 20437 | -5/Warlord | Lost 6 allies 20464 | -5/Warlord | Warlord base infiltrated, sounded retreat 20527 | -5/Warlord | Lost 3 allies 20567 | -5/Warlord | Found Prototype Launcher 20627 | -5/Warlord | Spotted Striker 20629 | -5/Warlord | Spotted Striker 20629 | -5/Warlord | Spotted Executioner 20641 | -5/Warlord | Destroyed Executioner 20641 | -5/Warlord | Destroyed Striker 20684 | -5/Warlord | Entered Proximity Caves 20684 | -4/Proximity Caves | Accompanied by 5 allies 20723 | -4/Proximity Caves | Spotted B-86 Titan 20732 | -4/Proximity Caves | Allies destroyed B-86 Titan 20783 | -4/Proximity Caves | Build established: Scavenger-Gunner 20843 | -4/Proximity Caves | Learned location of Quarantine (-2) 21116 | -4/Proximity Caves | Identified Chain Missile Launcher 21146 | -4/Proximity Caves | Discovered new exit (range 8) 21191 | -4/Proximity Caves | Learned location of 2 exits from Lower Caves 21198 | -4/Proximity Caves | Entered Factory 21198 | -4/Factory | Accompanied by 5 allies 21198 | -4/Factory | Evolved 2 slots: Power x1, Utility x1 21199 | -4/Factory | Identified exit to Research 21199 | -4/Factory | Identified exit to Upper Caves 21199 | -4/Factory | Identified Vortex Chain Reactor 21201 | -4/Factory | Loaded intel: 54 interactive machine locations 21202 | -4/Factory | Loaded intel: 26 terminal locations 21452 | -4/Factory | Lost 3 allies 21593 | -4/Factory | Loaded intel: 8 recycling unit locations 21597 | -4/Factory | Spotted B-86 Titan 21647 | -4/Factory | Destroyed B-86 Titan 21956 | -4/Factory | Fabricated Exp. Targeting Computer (x1) 22116 | -4/Factory | Fabricated Recoil Stabilizer (x2) 22383 | -4/Factory | Learned location of 2 exits from Research 22448 | -4/Factory | First assault squad dispatched 22457 | -4/Factory | Learned 2 Proximity Caves zone layouts 22508 | -4/Factory | Lost 7 parts (2p1n1u3w) 22518 | -4/Factory | Repaired Coil Gun? 22615 | -4/Factory | Learned Testing terminal intel 22669 | -4/Factory | Learned 4 Proximity Caves zone layouts 22702 | -4/Factory | Repaired Cmb. Gravmag System? 22734 | -4/Factory | Learned Armory emergency access door positions 22925 | -4/Factory | Repaired Cmb. Linear Gravjet? 22946 | -4/Factory | System corruption reached 10% 23103 | -4/Factory | Lost 3 parts (3w) 23272 | -4/Factory | Spotted B-86 Titan 23447 | -4/Factory | Found Prototype Launcher 23459 | -4/Factory | Identified Com. Tesla Bomb Launcher 23526 | -4/Factory | Manually triggered Chute Trap 23526 | -4/Factory | Sucked down chute 23526 | -4/Factory | Entered Waste 23551 | -4/Waste | Spotted C-40 Crusher 23572 | -4/Waste | Destroyed C-40 Crusher 23578 | -4/Waste | Spotted C-40 Crusher 23583 | -4/Waste | Spotted C-40 Crusher 23586 | -4/Waste | Destroyed C-40 Crusher 23590 | -4/Waste | Destroyed C-40 Crusher 23609 | -4/Waste | Spotted C-40 Crusher 23610 | -4/Waste | Destroyed C-40 Crusher 23616 | -4/Waste | Spotted C-40 Crusher 23620 | -4/Waste | Destroyed C-40 Crusher 23638 | -4/Waste | Spotted C-40 Crusher 23646 | -4/Waste | Destroyed C-40 Crusher 23719 | -4/Waste | Discovered new exit (range 15) 23732 | -4/Waste | Warlord forces began an assault 23913 | -4/Waste | Entered Factory 23913 | -4/Factory | Accompanied by 18 allies 23925 | -4/Factory | P-70 Sage assimilated allied SW-WAE(s) 23928 | -4/Factory | P-70 Sage assimilated allied 6A-DXX(s) 23977 | -4/Factory | Lost 5 allies 24137 | -4/Factory | Loaded intel: 8 recycling unit locations 24141 | -4/Factory | Found Prototype Processor 24141 | -4/Factory | Identified Exp. Signal Interpreter 24159 | -4/Factory | Garrison activated, responded to threat 24163 | -4/Factory | First assault squad dispatched 24186 | -4/Factory | High security lockdown imminent 24195 | -4/Factory | Imp. System Shield fried by hacking feedback 24266 | -4/Factory | High security lockdown engaged 24280 | -4/Factory | Lost 11 allies 24303 | -4/Factory | Fabricated Weapon Mount? 24536 | -4/Factory | Discovered exit to Upper Caves (range 6) 24550 | -4/Factory | Entered Upper Caves 24685 | -4/Upper Caves | Encountered a Warlord checkpoint 24686 | -4/Upper Caves | Learned Research stockpile data 24739 | -4/Upper Caves | Discovered new exit (range 11) 24783 | -4/Upper Caves | Identified exit to Upper Caves 24804 | -4/Upper Caves | Entered another Upper Caves area 24827 | -4/Upper Caves | Discovered exit to Research (range 15) 24940 | -4/Upper Caves | Identified exit to Zhirov 24968 | -4/Upper Caves | Encountered a Warlord checkpoint 24975 | -4/Upper Caves | Spotted B-86 Titan 24982 | -4/Upper Caves | Attacked by a delusional Derelict stockpiling Unaware 25278 | -4/Upper Caves | Learned Armory garrison access intel 25278 | -4/Upper Caves | Learned Research terminal intel 25278 | -4/Upper Caves | Learned Factory stockpile data 25285 | -4/Upper Caves | Entered Zhirov 25285 | -4/Zhirov | Accompanied by 3 allies 25285 | -4/Zhirov | Discovered new exit (range 3) 25286 | -4/Zhirov | Identified exit to Proximity Caves 25295 | -4/Zhirov | Met Zhirov 25304 | -4/Zhirov | Found Alien Artifact 25304 | -4/Zhirov | Identified Integrated Dissipator 25304 | -4/Zhirov | Installed Integrated Dissipator, increased core heat dissipation (+20) 25339 | -4/Zhirov | Found Alien Artifact 25399 | -4/Zhirov | Learned location of Command (-1) 25401 | -4/Zhirov | Zhirov requested help retrieving the SGEMP Prototype 25418 | -4/Zhirov | Entered Proximity Caves 25418 | -3/Proximity Caves | Accompanied by 3 allies 25474 | -3/Proximity Caves | Activated DRS Beacon 25509 | -3/Proximity Caves | Spotter reported a threat 25595 | -3/Proximity Caves | Found Alien Artifact 25595 | -3/Proximity Caves | Identified Dimensional Node Initializer 25595 | -3/Proximity Caves | Initialized slip node 25668 | -3/Proximity Caves | Spotted B-86 Titan 25692 | -3/Proximity Caves | Destroyed B-86 Titan 25743 | -3/Proximity Caves | Attracted the attention of an 0b10 outpost 26071 | -3/Proximity Caves | Entered Research 26071 | -3/Research | Accompanied by 2 allies 26071 | -3/Research | Evolved 2 slots: Propulsion x1, Utility x1 26072 | -3/Research | Identified exit to Armory 26073 | -3/Research | Identified exit to Research 26073 | -3/Research | Identified exit to Testing 26075 | -3/Research | Loaded intel: 20 terminal locations 26394 | -3/Research | Build established: Scavenger-Sprinter 26400 | -3/Research | Discovered exit to Testing (range 12) 26451 | -3/Research | Found Unknown Launcher 26451 | -3/Research | Identified Fusion Bomb Launcher 26710 | -3/Research | Spotted B-86 Titan 26724 | -3/Research | Destroyed B-86 Titan 26745 | -3/Research | Found Exp. Target Analyzer 26804 | -3/Research | Fabricated C-55 Analyst? 26821 | -3/Research | First assault squad dispatched 27124 | -3/Research | Fabricated Weapon Mount? 27150 | -3/Research | Scraphulk reinforcements arrived 27192 | -3/Research | Discovered exit to Research (range 15) 27209 | -3/Research | Lost 3 parts (3n) 27229 | -3/Research | Build established: Hacker-Gunner 27424 | -3/Research | Repaired Cmb. Linear Gravjet 27575 | -3/Research | Lost 4 allies 27611 | -3/Research | Repaired Hvy. Gauss Cannon? 27648 | -3/Research | Spotted B-86 Titan 27706 | -3/Research | Loaded intel: 4 recycling unit locations 27744 | -3/Research | Fabricated S-43 Plague (x4) 27796 | -3/Research | Fabricated Cmb. Linear Gravjet (x2) 27796 | -3/Research | High security lockdown imminent 27817 | -3/Research | Destroyed 8 combat bots 27876 | -3/Research | High security lockdown engaged 27880 | -3/Research | Lost 11 allies 27915 | -3/Research | Entered Testing 27916 | -3/Testing | Loaded intel: 10 terminal locations 27952 | -3/Testing | Found Prototype Device 27952 | -3/Testing | Identified 2N-1CE's Frost Array 27992 | -3/Testing | Spotted PL-TFED8R085Z 27999 | -3/Testing | Discovered exit to Research (range 16) 28025 | -3/Testing | Found Fusion Bomb Launcher 28082 | -3/Testing | Protovariant out of control (PL-TFED8R085Z) 28082 | -3/Testing | Unleashed a protovariant (PL-TFED8R085Z) 28128 | -3/Testing | System corruption reached 10% 28162 | -3/Testing | Spotted Striker 28162 | -3/Testing | Spotted Striker 28165 | -3/Testing | First assault squad dispatched 28247 | -3/Testing | Spotted Alpha 7 28248 | -3/Testing | Stole the SGEMP Prototype 28249 | -3/Testing | Identified Transdimensional Reconstructor 28249 | -3/Testing | Warped through subspace 28377 | -3/Testing | Found Lgt. Regenerative Plating 28411 | -3/Testing | Found Prototype Ballistic Cannon 28411 | -3/Testing | Identified Omega Cannon 28581 | -3/Testing | Entered Research 28581 | -2/Research | Evolved 2 slots: Propulsion x1, Utility x1 28620 | -2/Research | Identified exit to Quarantine 28667 | -2/Research | Spotted B-90 Cyclops 28706 | -2/Research | Spotted B-90 Cyclops 28710 | -2/Research | Destroyed B-90 Cyclops 28831 | -2/Research | First assault squad dispatched 28935 | -2/Research | Lost 6 parts (2n4w) 28971 | -2/Research | Allied Derelicts emerged from ambush trap array 28985 | -2/Research | Build established: Hacker-Sprinter 29090 | -2/Research | Entered Quarantine 29092 | -2/Quarantine | Spotted Alpha 7 29157 | -2/Quarantine | Repaired Cld. Antigrav System 29202 | -2/Quarantine | Repaired Cld. Gravmag System 29288 | -2/Quarantine | Found Alien Energy Cannon 29296 | -2/Quarantine | Discovered new exit (range 21) 29321 | -2/Quarantine | Found Alien Slashing Weapon 29321 | -2/Quarantine | Identified Sigix Broadsword 29363 | -2/Quarantine | Found Alien Artifact 29369 | -2/Quarantine | Found Alien Artifact 29375 | -2/Quarantine | Found Dimensional Node Initializer 29375 | -2/Quarantine | Initialized slip node 29378 | -2/Quarantine | Found Dimensional Node Initializer 29378 | -2/Quarantine | Initialized slip node 29430 | -2/Quarantine | Found Alien Artifact 29430 | -2/Quarantine | Identified Hpw. Transdimensional Reconstructor (x3) 29430 | -2/Quarantine | Warped through subspace to slip node 29438 | -2/Quarantine | Found Dimensional Node Initializer 29441 | -2/Quarantine | Found Transdimensional Reconstructor 29461 | -2/Quarantine | Identified Core Cannon 29473 | -2/Quarantine | Scanned by Researcher 29485 | -2/Quarantine | Found Alien Artifact 29486 | -2/Quarantine | Identified Subatomic Replicator 29486 | -2/Quarantine | Used Subatomic Replicator to replicate Omega Cannon 29492 | -2/Quarantine | Warped through subspace to slip node 29667 | -2/Quarantine | Spotted Fortress 29689 | -2/Quarantine | Discovered new exit (range 7) 29689 | -2/Quarantine | Discovered new exit (range 6) 29691 | -2/Quarantine | Entered Protoforge 29755 | -2/Protoforge | Superfortress began startup sequence 29767 | -2/Protoforge | Initialized slip node 29866 | -2/Protoforge | Spotted Hotshot 29891 | -2/Protoforge | Spotted Hotshot 29900 | -2/Protoforge | Spotted Hotshot 29900 | -2/Protoforge | Spotted Hotshot 29934 | -2/Protoforge | Spotted B-90 Cyclops 29934 | -2/Protoforge | Spotted Hotshot 29934 | -2/Protoforge | Spotted Hotshot 30053 | -2/Protoforge | Spotted AP7-3 30107 | -2/Protoforge | Spotted Overlord 30127 | -2/Protoforge | Spotted Immortal 30127 | -2/Protoforge | Spotted Immortal 30127 | -2/Protoforge | Spotted Immortal 30246 | -2/Protoforge | Spotted EXE-6 30246 | -2/Protoforge | Spotted EXE-6 30260 | -2/Protoforge | UFD initiated attack on Protoforge 30260 | -2/Protoforge | Loaded intel: 3 recycling unit locations 30278 | -2/Protoforge | Scrapoids reinforcements arrived? 30279 | -2/Protoforge | Found Prototype Ballistic Gun 30280 | -2/Protoforge | Found Exp. Armor Integrity Analyzer 30285 | -2/Protoforge | Scrapoids reinforcements arrived? 30288 | -2/Protoforge | Found Prototype Device 30288 | -2/Protoforge | Identified Exp. Kinecellerator 30296 | -2/Protoforge | Optimus greeted in Protoforge 30387 | -2/Protoforge | Destroyed Overlord 30390 | -2/Protoforge | Fabricated Vortex Chain Reactor? 30411 | -2/Protoforge | Lost 4 allies 30468 | -2/Protoforge | Fabricated Tactical Coordination Suite (x1) 30538 | -2/Protoforge | Spotted Executioner 30538 | -2/Protoforge | Spotted Striker 30550 | -2/Protoforge | Destroyed Executioner 30558 | -2/Protoforge | Spotted Striker 30566 | -2/Protoforge | Spotted Striker 30567 | -2/Protoforge | Destroyed Striker 30575 | -2/Protoforge | Spotted Executioner 30575 | -2/Protoforge | Spotted Executioner 30580 | -2/Protoforge | Destroyed Executioner 30584 | -2/Protoforge | Destroyed Executioner 30605 | -2/Protoforge | Destroyed 9 combat bots 30610 | -2/Protoforge | Spotted Hotshot 30618 | -2/Protoforge | Spotted Hotshot 30620 | -2/Protoforge | Spotted Hotshot 30621 | -2/Protoforge | Destroyed Hotshot 30624 | -2/Protoforge | Destroyed Hotshot 30628 | -2/Protoforge | Destroyed Hotshot 30652 | -2/Protoforge | Spotted Executioner 30653 | -2/Protoforge | Destroyed Executioner 30670 | -2/Protoforge | Lost 12 allies 30670 | -2/Protoforge | Spotted Striker 30675 | -2/Protoforge | Allies destroyed Striker 30678 | -2/Protoforge | Spotted Striker 30681 | -2/Protoforge | Spotted Striker 30731 | -2/Protoforge | Lost 5 allies 30733 | -2/Protoforge | Spotted Executioner 30733 | -2/Protoforge | Spotted Striker 30733 | -2/Protoforge | Spotted Striker 30735 | -2/Protoforge | Spotted Striker 30748 | -2/Protoforge | Destroyed Striker 30751 | -2/Protoforge | Destroyed Executioner 30758 | -2/Protoforge | Destroyed Striker 30846 | -2/Protoforge | Spotted SKR-2 30857 | -2/Protoforge | Spotted Executioner 30858 | -2/Protoforge | Lost 11 allies 30858 | -2/Protoforge | Spotted Executioner 30872 | -2/Protoforge | Destroyed Executioner 30877 | -2/Protoforge | Found Unknown Device 30877 | -2/Protoforge | Identified Scrap Suit 30884 | -2/Protoforge | Found Scrap Suit 30902 | -2/Protoforge | Spotted Striker 30902 | -2/Protoforge | Spotted Executioner 30912 | -2/Protoforge | Destroyed Executioner 30950 | -2/Protoforge | Spotted Striker 30951 | -2/Protoforge | Spotted Executioner 30973 | -2/Protoforge | Destroyed Striker 30973 | -2/Protoforge | P-80 Master assimilated allied 02F92-D 31002 | -2/Protoforge | Spotted Striker 31002 | -2/Protoforge | Spotted Striker 31002 | -2/Protoforge | Spotted Executioner 31002 | -2/Protoforge | Spotted Executioner 31040 | -2/Protoforge | Destroyed Striker 31043 | -2/Protoforge | Destroyed Striker 31102 | -2/Protoforge | Build established: Scavenger-Mutant 31140 | -2/Protoforge | Found 0bPrime Scrap Suit 31142 | -2/Protoforge | Lost 17 allies 31157 | -2/Protoforge | Spotted Striker 31157 | -2/Protoforge | Spotted Striker 31178 | -2/Protoforge | Destroyed Striker 31239 | -2/Protoforge | Spotted Executioner 31256 | -2/Protoforge | Spotted Striker 31257 | -2/Protoforge | Spotted Striker 31261 | -2/Protoforge | Spotted Executioner 31262 | -2/Protoforge | Destroyed Striker 31280 | -2/Protoforge | Destroyed Executioner 31304 | -2/Protoforge | Lost 3 allies 31352 | -2/Protoforge | Installed UFD Drillbomb at designated target 31352 | -2/Protoforge | UFD reported confirmed Drillbomb installation 31385 | -2/Protoforge | Spotted Striker 31387 | -2/Protoforge | Spotted Executioner 31388 | -2/Protoforge | Destroyed Striker 31395 | -2/Protoforge | Destroyed Executioner 31401 | -2/Protoforge | P-80 Master assimilated allied 02FBF-D 31423 | -2/Protoforge | Lost 3 allies 31426 | -2/Protoforge | Spotted EXE-6 31449 | -2/Protoforge | Spotted Executioner 31450 | -2/Protoforge | Spotted Striker 31451 | -2/Protoforge | Destroyed EXE-6 31452 | -2/Protoforge | Core integrity fell below 50% 31467 | -2/Protoforge | Build established: Scavenger-Gunner 31479 | -2/Protoforge | Spotted Executioner 31485 | -2/Protoforge | Spotted Striker 31488 | -2/Protoforge | Lost 3 allies 31534 | -2/Protoforge | Destroyed Executioner 31549 | -2/Protoforge | Destroyed Executioner 31553 | -2/Protoforge | Spotted Executioner 31557 | -2/Protoforge | Spotted Executioner 31557 | -2/Protoforge | Destroyed Executioner 31589 | -2/Protoforge | Spotted Executioner 31590 | -2/Protoforge | Lost 8 allies 31591 | -2/Protoforge | Spotted Striker 31630 | -2/Protoforge | Destroyed Executioner 31686 | -2/Protoforge | Spotted Striker 31686 | -2/Protoforge | Spotted Executioner 31795 | -2/Protoforge | Spotted Hotshot 31795 | -2/Protoforge | Spotted Hotshot 31796 | -2/Protoforge | Destroyed Hotshot 31799 | -2/Protoforge | Spotted Hotshot 31806 | -2/Protoforge | Destroyed Hotshot 31841 | -2/Protoforge | Spotted Striker 31842 | -2/Protoforge | Spotted Executioner 31845 | -2/Protoforge | Spotted Executioner 31876 | -2/Protoforge | Destroyed Executioner 31881 | -2/Protoforge | Spotted Executioner 31886 | -2/Protoforge | Destroyed Executioner 31895 | -2/Protoforge | Destroyed Executioner 31934 | -2/Protoforge | UFD reported confirmed Drillbomb installation 31941 | -2/Protoforge | Lost 5 allies 31948 | -2/Protoforge | Found Exp. Core Analyzer 31967 | -2/Protoforge | Spotted Striker 31967 | -2/Protoforge | Spotted Executioner 31980 | -2/Protoforge | Destroyed Striker 32005 | -2/Protoforge | Destroyed Executioner 32031 | -2/Protoforge | Spotted Striker 32036 | -2/Protoforge | Spotted Striker 32041 | -2/Protoforge | Destroyed 7 combat bots 32043 | -2/Protoforge | Lost 4 allies 32045 | -2/Protoforge | Destroyed Striker 32059 | -2/Protoforge | Spotted Executioner 32072 | -2/Protoforge | Spotted Striker 32132 | -2/Protoforge | Spotted Executioner 32138 | -2/Protoforge | Destroyed Executioner 32141 | -2/Protoforge | Spotted Executioner 32141 | -2/Protoforge | Spotted Executioner 32150 | -2/Protoforge | Destroyed Executioner 32151 | -2/Protoforge | Spotted Executioner 32157 | -2/Protoforge | Spotted Striker 32158 | -2/Protoforge | Spotted Executioner 32161 | -2/Protoforge | Destroyed 02F32-K 32181 | -2/Protoforge | Destroyed Striker 32195 | -2/Protoforge | Lost 5 allies 32219 | -2/Protoforge | Destroyed Executioner 32230 | -2/Protoforge | Destroyed Executioner 32238 | -2/Protoforge | Spotted Striker 32239 | -2/Protoforge | Spotted Executioner 32257 | -2/Protoforge | Spotted Executioner 32269 | -2/Protoforge | Spotted Striker 32273 | -2/Protoforge | Destroyed Striker 32283 | -2/Protoforge | Destroyed Striker 32289 | -2/Protoforge | Destroyed Executioner 32302 | -2/Protoforge | Destroyed Executioner 32319 | -2/Protoforge | Lost 4 allies 32320 | -2/Protoforge | Spotted Striker 32332 | -2/Protoforge | UFD reported confirmed Drillbomb installation 32356 | -2/Protoforge | Spotted Executioner 32363 | -2/Protoforge | Destroyed Executioner 32366 | -2/Protoforge | Spotted Striker 32420 | -2/Protoforge | Spotted Striker 32422 | -2/Protoforge | Destroyed Striker 32424 | -2/Protoforge | Spotted Striker 32425 | -2/Protoforge | Destroyed Striker 32430 | -2/Protoforge | Spotted Striker 32431 | -2/Protoforge | Spotted Executioner 32439 | -2/Protoforge | Destroyed Executioner 32442 | -2/Protoforge | Spotted Striker 32444 | -2/Protoforge | Destroyed Striker 32445 | -2/Protoforge | Spotted Striker 32480 | -2/Protoforge | Destroyed 9 combat bots 32488 | -2/Protoforge | Lost 8 allies 32508 | -2/Protoforge | Discovered new exit (range 11) 32512 | -2/Protoforge | Spotted Striker 32517 | -2/Protoforge | Spotted Executioner 32518 | -2/Protoforge | Spotted Striker 32528 | -2/Protoforge | Spotted Hotshot 32528 | -2/Protoforge | Destroyed Hotshot 32550 | -2/Protoforge | Destroyed Striker 32560 | -2/Protoforge | Destroyed Executioner 32561 | -2/Protoforge | Spotted Striker 32562 | -2/Protoforge | Destroyed Striker 32589 | -2/Protoforge | Found Prototype Ballistic Gun 32589 | -2/Protoforge | Identified Cep. XC Strikerail 32591 | -2/Protoforge | Found Cep. XC Strikerail 32600 | -2/Protoforge | Lost 6 allies 32603 | -2/Protoforge | Found Prototype Device 32603 | -2/Protoforge | Identified Exp. System Purifier 32613 | -2/Protoforge | UFD reported confirmed Drillbomb installation 32646 | -2/Protoforge | Spotted Executioner 32651 | -2/Protoforge | Destroyed Executioner 32653 | -2/Protoforge | UFD reported confirmed Drillbomb installation 32658 | -2/Protoforge | Spotted Striker 32658 | -2/Protoforge | Spotted Striker 32705 | -2/Protoforge | Spotted Executioner 32719 | -2/Protoforge | Spotted Striker 32723 | -2/Protoforge | Spotted Striker 32729 | -2/Protoforge | Destroyed Striker 32737 | -2/Protoforge | Spotted Executioner 32742 | -2/Protoforge | Spotted Striker 32754 | -2/Protoforge | Spotted Executioner 32755 | -2/Protoforge | Spotted Striker 32761 | -2/Protoforge | Destroyed Striker 32772 | -2/Protoforge | UFD reported confirmed Drillbomb installation 32787 | -2/Protoforge | Spotted Hotshot 32787 | -2/Protoforge | Spotted Hotshot 32790 | -2/Protoforge | Lost 5 allies 32792 | -2/Protoforge | Spotted Hotshot 32793 | -2/Protoforge | Destroyed Hotshot 32802 | -2/Protoforge | Destroyed Hotshot 32829 | -2/Protoforge | Found Cep. XC Strikerail 32831 | -2/Protoforge | Found Cep. XC Strikerail 32848 | -2/Protoforge | Found Cep. XC Strikerail 32878 | -2/Protoforge | Found Prototype Device 32879 | -2/Protoforge | Identified Crosscalibrator 32884 | -2/Protoforge | Spotted Immortal 32887 | -2/Protoforge | Spotted Hotshot 32887 | -2/Protoforge | Spotted Hotshot 32887 | -2/Protoforge | Spotted Decapitator 32887 | -2/Protoforge | Spotted Decapitator 32887 | -2/Protoforge | Spotted Decapitator 32887 | -2/Protoforge | Spotted Decapitator 32904 | -2/Protoforge | Destroyed Immortal 32916 | -2/Protoforge | Found Cep. Antigrav Storage Unit 32918 | -2/Protoforge | Found Prototype Storage 32918 | -2/Protoforge | Identified Cep. NT7 Matterbank 32924 | -2/Protoforge | Found Prototype Device 32924 | -2/Protoforge | Identified Cep. Matter Streamer 32929 | -2/Protoforge | Found Cep. Matter Streamer 32931 | -2/Protoforge | Found Cep. NT7 Matterbank 32934 | -2/Protoforge | Found Faulty Cep. Matter Streamer 32938 | -2/Protoforge | Found Cep. NT7 Matterbank 32939 | -2/Protoforge | Found Cep. NT7 Matterbank 32973 | -2/Protoforge | Found Prototype Launcher 32974 | -2/Protoforge | Spotted V116-t 32974 | -2/Protoforge | Spotted V414-x 33000 | -2/Protoforge | Spotted Decapitator 33000 | -2/Protoforge | Spotted Decapitator 33000 | -2/Protoforge | Spotted V986-w 33000 | -2/Protoforge | Spotted V473-b 33009 | -2/Protoforge | Warped through subspace to slip node 33030 | -2/Protoforge | Build established: Scavenger-Sprinter 33118 | -2/Protoforge | UFD reported confirmed Drillbomb installation 33138 | -2/Protoforge | Identified Cep. Rapid Grenade Launcher 33141 | -2/Protoforge | Warped through subspace to slip node 33162 | -2/Protoforge | Found UFD Drillbomb 33186 | -2/Protoforge | Installed UFD Drillbomb at designated target 33186 | -2/Protoforge | UFD reported confirmed Drillbomb installation 33193 | -2/Protoforge | Found UFD Drillbomb 33229 | -2/Protoforge | Spotted Striker 33232 | -2/Protoforge | Spotted Striker 33234 | -2/Protoforge | Destroyed Striker 33247 | -2/Protoforge | Spotted Executioner 33262 | -2/Protoforge | Destroyed Executioner 33265 | -2/Protoforge | Spotted Executioner 33267 | -2/Protoforge | Destroyed Executioner 33291 | -2/Protoforge | Installed UFD Drillbomb at designated target 33291 | -2/Protoforge | UFD reported confirmed Drillbomb installation 33293 | -2/Protoforge | Found UFD Drillbomb 33296 | -2/Protoforge | Lost 6 allies 33308 | -2/Protoforge | Installed UFD Drillbomb at designated target 33308 | -2/Protoforge | UFD reported confirmed Drillbomb installation 33309 | -2/Protoforge | UFD began Drillbomb countdown 33386 | -2/Protoforge | Found 0bPrime Scrap Suit 33409 | *** | Defending 0bPrime! Last Messages --------------- 33403_ N-04 Retriever inserts Impulse Thruster Array into Forge Plexus. 33404_ 0bP_NET: Your pep talk needs some work. 33404_ N-04 Retriever inserts Exp. Targeting Computer into Forge Plexus. 33405_ 0bP_NET: Shut your pi-hole, I'm just being a realist. 33405_ N-04 Retriever inserts Hvy. Machine Gun into Forge Plexus. 33406_ 0bP_NET: Things are about to get real, indeed. T-3! 33406_ N-04 Retriever inserts Impulse Thruster Array into Forge Plexus. 33407_ 0bP_NET: First dibs on the next iteration of our Scrapsuit! 33407_ N-04 Retriever inserts Exp. Core Analyzer into Forge Plexus. 33408_ 0bP_NET: Ha, who wants more upgrades to that old thing, the proto-powered Scrap Engine is where it's at. Map ----- +----------------------------------------------------+ | ##??????????????????????????????????????????????? | | #??????????????????????????????????????????????? | | #######################################??????????? | | = % #??????????? | | %%! """ " #?#######??? | | %% """ " """"" #?#"""""#??? | | "" "" """" #?#"""""#??? | | % """ "" " ###"" F"###? | | "" """ " " " #"" ""#? | | "" " """" " "" ""% " #" "## | | " " # "" | | % " " " # "" | | !%= " "" " ; "" | | %[% %""! % % " + F | | ! % !![ "% " " " # "" | | "" %%% % % ! " "% "" "# "" | | """% %% "% %% ! "# ## | | " " "" % % # ## | | "%%%m n "%% % %"!!!!%= " # "" | | %% n % %%%%" !=%%%= % "" # "" | | """"""""" % ! %=!%% " % + "F | | """""""""""""""% %![%!%[%% %% " + | | """"""""""""""""% %[%%%s=% %%% " # " | | """""""""""""""""%%% %==%[! %% " % # " | | """"""""""""""""""% !%% %!%= "#" "## | | """""""""""""""""""% %=SS@! #"" ""#? | | """""""""""""""""""" s SS%% ![ % "###"F ""###? | | """""""""""""""""""""%%%E!%!!%!! % ;##"""""#??? | | """"""""""""""""""""" % =[ =[[%3= " # #"""""#??? | | """""""""""""""""""""%% [%%%%%!= #########??? | | """"""""""""""""""""""% %%!*!== #??????????? | | """""""""""""""""""""" %%% %%%%!! "#??????????? | | """"""""""""""""""""""% %=%%*[%%[ #??????????? | | """"""""""""""""""""""%%%%%%[%%%= #??????????? | | """"""""""""""""""""""%%%=![=s=% #??????????? | | """"""""""""""""""""""%%s%=[%!!% ##?????????? | | """""""""""""""""""""" % =%!! % " #?????????? | | """""""""""""""""""""" %%/%/=% % "" #?????????? | | """"""""""""""""""""""%%%[%[% " ##?????????? | | """""""""""""""""""""%s%"%=%!% % % "#??????????? | | """"""""""""""""""""" =%%!%= " #??????????? | | """"""""""""""""""""" %%=% % " #??????????? | | """""""""""""""""""" %%%*% "% % #??????????? | | """"""""""""""""""" "%[%! " " % "" #??????????? | | """""""""""""""""" "[!=! " """"% #??????????? | | """"""""""""""""" % !" " " % %"% #??????????? | | """""""""""""""" =% " " ="" #??????????? | | """"""""""""""" " % " " % #??????????? | | """"""""" "" "" % % #??????????? | | %% "" "" """% "" #??????????? | +----------------------------------------------------+ Best States ------------- Heat Dissipation 169 Coolant Potential 100 Energy Generation 55 Energy Capacity 760 Matter Stores 300 Matter Capacity 1050 Sight Range 23 Robot Scan Range 16 Terrain Scan Range 16 Terrain Scan Density 10 Cloak Strength 4 Additional Mass Support 12 Armor Coverage 225 Resistance: KI 25 Resistance: TH 50 Weapon Shielding 100 Weapon Cycling 25 Evasion (%) 72 Targeting Accuracy 32 Launcher Accuracy 60 Target Analysis 11 Core Analysis 8 Armor Integrity Analysis 50 Recoil Reduction 6 Matter Filtering 30 Kinecelleration 66 Salvage Targeting 6 Offensive Hacking 40 Defensive Hacking 34 Authchip Count 1 Item Schematics ----------------- Assault Cannon | -9/Materials | Scanalyzed Lgt. Ion Engine | -9/Materials | Extracted Shield Generator | -9/Materials | Extracted Arm. Wheel | -9/Materials | Extracted Rocket Launcher | -9/Materials | Extracted Utility Shielding | -9/Materials | Extracted Cooling System | -9/Materials | Scanalyzed Imp. Targeting Computer | -9/Materials | Extracted Hvy. Hammer | -9/Materials | Extracted Recoil Stabilizer | -9/Storage | Hacked Imp. Gravmag System | -6/Factory | Scanalyzed Hyp. Gauss Rifle | -6/Factory | Scanalyzed Hvy. Machine Gun | -6/Factory | Scanalyzed Magnetic Acceleration Cannon | -6/Factory | Scanalyzed Cmb. Airjet | -6/Factory | Scanalyzed Antimatter Cannon | -6/Factory | Scanalyzed Fission Core | -6/Factory | Scanalyzed Hpw. Tractor Beam | -6/Factory | Scanalyzed Imp. Reaction Control System | -6/Factory | Scanalyzed Weapon Mount | -6/Factory | Hacked Antimatter Reactor | -6/Factory | Hacked Battle Cannon | -6/Zion | Free Flamer | -6/Zion | Free Hvy. Riot Gun | -6/Zion | Free Barrage Gun | -6/Zion | Free Ripper | -6/Zion | Free Tactical Coordination Suite | -6/Zion | Free Exp. Targeting Computer | -5/Factory | Scanalyzed Fusion Reactor | -5/Factory | Scanalyzed Cmb. Gravmag System | -5/Factory | Scanalyzed Com. Linear Accelerator | -4/Factory | Scanalyzed Vortex Chain Reactor | -4/Factory | Scanalyzed Cmb. Linear Gravjet | -4/Factory | Scanalyzed Exp. Cloaking Device | -4/Factory | Scanalyzed Adv. Recoil Stabilizer | -4/Factory | Scanalyzed Mni. Fusion Reactor | -4/Factory | Scanalyzed Cld. Antigrav System | -4/Factory | Scanalyzed Adv. Matter Compressor | -4/Factory | Scanalyzed Com. Tesla Bomb Launcher | -4/Factory | Scanalyzed Imp. Heavy Armor Plating | -4/Factory | Extracted Adv. Terrain Scan Processor | -4/Factory | Extracted Assault Drone Bay | -4/Zhirov | Free Exp. Heat Sink | -4/Zhirov | Free Exp. Optical Array | -4/Zhirov | Free Imp. Arc Thrower | -4/Zhirov | Free Hyp. Mass Driver | -3/Research | Scanalyzed Lgt. Regenerative Plating | -3/Testing | Hacked Hvy. Regenerative Plating | -3/Testing | Hacked Proton Burst Cannon | -3/Testing | Archive Centrium Heavy Armor Plating | -3/Testing | Archive Thermal Defense Suite | -3/Testing | Archive Exp. Reaction Control System | -2/Quarantine | Archive Lgt. Antimatter Cannon | -2/Quarantine | Archive Robot Schematics ------------------ I-25 Savior | -9/Recycling | Hacked R-06 Scavenger | -3/Testing | Archive T-07 Excavator | -3/Testing | Archive K-01 Serf | -2/Quarantine | Archive Fabricated ------------ Weapon Mount | x2 | -6/Factory I-25 Savior | x1 | -6/Factory Exp. Targeting Computer | x1 | -4/Factory | Authchip Recoil Stabilizer | x2 | -4/Factory | Authchip Weapon Mount | x2 | -4/Factory C-55 Analyst | x1 | -3/Research | Preloaded Weapon Mount | x2 | -3/Research S-43 Plague | x4 | -3/Research | Preloaded Cmb. Linear Gravjet | x2 | -3/Research Vortex Chain Reactor | x1 | -2/Protoforge | Authchip Tactical Coordination Suite | x1 | -2/Protoforge Repaired ---------- Lgt. Assault Rifle | 40% | -10/Materials Hvy. Assault Rifle | 39% | -9/Materials Assault Cannon | 71% | -9/Materials Imp. Treads | 65% | -9/Materials Imp. Treads | 60% | -9/Materials Imp. Treads | 27% | -9/Storage Assault Cannon | 41% | -9/Storage Assault Cannon | 50% | -9/Storage Cmb. Airjet | 72% | -6/Factory | Broken Fission Core | 8% | -6/Factory Hvy. Machine Gun | 69% | -6/Factory Imp. Heavy Machine Gun | 32% | -6/Factory Cmb. Airjet | 59% | -6/Factory Weapon Mount | 24% | -5/Factory Cmb. Gravmag System | 16% | -5/Factory Coil Gun | 6% | -4/Factory Cmb. Gravmag System | 14% | -4/Factory Cmb. Linear Gravjet | 6% | -4/Factory Cmb. Linear Gravjet | 7% | -3/Research Hvy. Gauss Cannon | 38% | -3/Research Cld. Antigrav System | 9% | -2/Quarantine Cld. Gravmag System | 2% | -2/Quarantine Alien Tech Used ----------------- Core Expander Integrated Dissipator Dimensional Node Initializer Transdimensional Reconstructor Sigix Broadsword High-powered Transdimensional Reconstructor Subatomic Replicator Core Cannon Achievements -------------- None Challenges ------------ None Game ------ Seed PhysicsPortableKatana Manual? 0 Play Time 12:28:13 Cumulative 540.4 hours Start 2025.08.15 @ 16:56:30 End 2025.08.17 @ 02:27:23 Sessions 11 Manual Loads 0 Difficulty Rogue Special Mode None Game No. 281 Rogue 281 Adventurer 0 Explorer 0 Win Type 9 Total 6 Types 3/0/1/1/0/0/0/0/0/1 Lore% 86 Gallery% 77 Achievement% 68 Wizard Run 0 Options --------- Layout 2 ASCII 0 Keyboard 1 Movement Vi Keybinds 0 Fullscreen 1 Font 16/Tamsyn Map View 55x47 Zoom Use 0% Tactical HUD 1 Map Filters NONE Filters NONE Steam 0 RUN: 21b2c17d-61e4-496b-9d70-b49ebd4f49c7